Workbook

Sheet Лист1 (hidden)
B2: Zkontrolovat fyzikální parametry aminu, jsou li nějaké podmínky pro ohřátí. | C2: Rebioler temp ~120C | D2: A | F2: U | G2: Coef
D3: =150*50 -> 7500 | E3: mm2 | F3: 1000 | G3: =D4*F3 -> 75
D4: =D3*0.00001 -> 0.075 | E4: m2 | F4: 4000 | G4: =F4*D4 -> 300
B5: Zkontrolovat můžeme li schladit to co vypařuje, neni li potřeba dát ještě tam mezichladič.
B6: Zkontrolovat kolik vody+aminy můžeme odpařit.

Sheet MainDesign
B2: Zvolit/vybrat | F2: Orientacni hodnoty | S2: L/G | T2: w MEA
B3: Pocita se automaticky | I3: max vyska kolony/samostatna | S3: 2 | T3: 0.15
B4: Tabulky/zdroje dat | I4: zvoleny prumer kolony | S4: 2.5 | T4: 0.3
S5: 2.7 | T5: 0.45
S6: 3 | T6: 0.6
A7: * | B7: N teor | C7: 20 | D7: [1] | G7: Typ | H7: F | I7: HETP | J7: ug` | K7: ug | L7: H` | M7: Vst | N7: mst[kg/h] | O7: dp/dz mbar/m | P7: dp mbar | Q7: dp Pa | S7: 3.5
B8: rho gas | C8: 1.19 | D8: kg/m3 | F8: min | G8: EX | H8: 0.25 | I8: 0.02 | J8: =H8/SQRT($C$9) -> 0.2795084972 | K8: =J8*$C$9 -> 0.2236067977 | L8: =I8*$C$7 -> 0.4 | M8: =K8*PI()*$C$11^2/4 -> 0.0004390509207 | N8: =M8*$C$9*3600 -> 1.264466652 | O8: 1 | P8: =L8*O8 -> 0.4 | Q8: =O8*L8*100 -> 40 | S8: 4
B9: flooding | C9: 0.8 | F9: min | G9: DX | H9: 0.25 | I9: 0.03 | J9: =H9/SQRT($C$9) -> 0.2795084972 | K9: =J9*$C$9 -> 0.2236067977 | L9: =I9*$C$7 -> 0.6 | M9: 0.0004390509207 | N9: =M9*$C$9*3600 -> 1.264466652 | O9: 1 | P9: 0.6 | Q9: 60
B10: Hmax | C10: =1.5 -> 1.5 | D10: m | F10: min | G10: 250Y | H10: 1 | I10: 0.35 | J10: 1.118033989 | K10: 0.894427191 | L10: 7 | M10: 0.001756203683 | N10: 5.057866606 | O10: 0.3 | P10: 2.1 | Q10: 210
B11: Dk | C11: 0.05 | D11: m | F11: max | G11: EX | H11: 1.25 | I11: 0.06 | J11: =H11/SQRT($C$9) -> 1.397542486 | K11: 1.118033989 | L11: 1.2 | M11: 0.002195254603 | N11: =M11*$C$9*3600 -> 6.322333258 | O11: 15 | P11: =L11*O11 -> 18 | Q11: =O11*L11*100 -> 1800
F12: max | G12: DX | H12: 2.25 | I12: 0.07 | J12: =H12/SQRT($C$9) -> 2.515576475 | K12: 2.01246118 | L12: 1.4 | M12: 0.003951458286 | N12: =M12*$C$9*3600 -> 11.38019986 | O12: 15 | P12: =L12*O12 -> 21 | Q12: =O12*L12*100 -> 2100
F13: max | G13: 250Y | H13: 3 | I13: 0.4 | J13: =H13/SQRT($C$9) -> 3.354101966 | K13: 2.683281573 | L13: =I13*$C$7 -> 8 | M13: 0.005268611048 | N13: =M13*$C$9*3600 -> 15.17359982 | O13: 2 | P13: =L13*O13 -> 16 | Q13: =O13*L13*100 -> 1600
B15: Vstupni udaje | F15: Vystupni kratky soupis | I15: Prutoky | M15: Koncentrace
A16: * | B16: Typ naplne | C16: EX | F16: =E65 -> Q gen | G16: =F65 -> 1.462927439 | H16: =G57 -> kW | I16: absorber | J16: gas in | K16: =C27 -> 6.322333258 | L16: =D27 -> kg/h | M16: =#REF! ->  | N16: =C45 -> 0.3 | O16: =#REF! -> 
B17: Typ smesi plynu | C17: CoalPlant | F17: =B72 -> S evap | G17: =C72 -> 0.07314637196 | H17: =D72 -> m2 | J17: liq in | K17: =C38 -> 25.28933303 | L17: =D38 -> kg/h | M17: =L32 -> X | N17: =M32 -> 0.9492308498 | O17: =N32 -> mol CO2/kg lean
B18: Tlak vstupni | C18: 1000 | D18: mbar | F18: =E67 -> Q cond | G18: =F67 -> 0.2842765288 | H18: =G59 -> kW | I18: desorber | J18: liq in | K18: =C39 -> 26.62800523 | L18: =D39 -> kg/h
B19: L/G pomer | C19: 4 | F19: =B104 -> S min | G19: =C104 -> 0.1014584905 | H19: =D104 -> m2 | J19: vap out | K19: =C105 -> 0.4191849272 | L19: =D105 -> kg/h
B20: PiCO2 | C20: 150 | D20: Nastaveni ve smesi | F20: =B77 -> Q HE | G20: =C77 -> 1.441182136 | H20: =D77 -> kW
B21: Mez min/max | C21: max | D21: F | E21: =(C21="max")*INDEX(H11:H13,MATCH(C16,G11:G13,0))+(C21="min")*INDEX(H8:H10,MATCH(C16,G8:G10,0)) -> 1.25
C22: =(C21="min")*INDEX(N8:N10,MATCH(C16,G8:G10,0)) -> 0 | F22: Q chiller | G22: =C90+C97 -> 0.7962368323 | H22: kW
C23: =(C21="max")*INDEX(N11:N13,MATCH(C16,G11:G13,0)) -> 6.322333258
A25: * | B25: Flue gas inlet | C25: =SUM(C22:C23) -> 6.322333258 | D25: kg/h | I25: M MEA | J25: 61.08 | K25: g/mol | O25: =G27/60*1000000 -> 97437.39481 | P25: SCCM | Q25: standard cubic centimeters per minute
B26: Redukce % inlet | C26: 1 | D26: manualni snizeni vstupniho proudu | I26: M CO2 | J26: =FlueGas!C10 -> 44.01 | K26: g/mol | O26: =G27*1000/60 -> 97.43739481 | P26: SLPM | Q26: standard litre per minute
B27: Flue gas inlet red | C27: =C25*C26 -> 6.322333258 | D27: kg/h | E27: =C27/WHumid!C28*1000/60 -> 97.43739481 | F27: l/min | G27: =E27*60/1000 -> 5.846243688 | H27: m3/h
B28: p i co2 | C28: =FlueGas!C5 -> 150 | D28: mbar
B29: w h20 | C29: =FlueGas!C6 -> 0.03012320088 | E29: =WHumid!I18 -> 0.04959588232 | F29: 40oC 0,1Mpa | I29: mst MEA | J29: =C38*C45 -> 7.58679991 | K29: kg MEA/h
B30: mst h2o inlet | C30: =C27*C29 -> 0.1904489148 | D30: kg/h | E30: =WHumid!J14 -> 0.007360631356 | F30: 20oC 0,2Mpa | I30: nst MEA | J30: =J29/J25*1000 -> 124.2108695 | K30: mol MEA/h
B31: w co2 inlet | C31: =FlueGas!C4 -> 0.2207084469
H32: Lean | I32: nst co2 | J32: =J30*C47 -> 24.00541509 | K32: mol CO2/h | L32: X | M32: =J32/C38 -> 0.9492308498 | N32: mol CO2/kg lean
B33: Zbytky v inlet | C33: =C27-C30-C37 -> 4.736491989 | D33: kg/h | I33: mst co2 | J33: =J32*J26/1000 -> 1.056478318 | K33: kg/h
B34: Clean gas outlet | C34: =(C33+C48)/(1-E29) -> 4.983661057 | D34: kg/h | H34: Rich | I34: nst co2 | J34: =J30*C46 -> 65.76977172 | K34: mol CO2/h
B35: mst h20 outlet | C35: =C34*E29 -> 0.2471690673 | D35: kg/h | I35: mst co2 teor | J35: =J34*J26/1000 -> 2.894527654 | K35: kg/h | M35: =J37/C39 -> 2.092220999 | N35: mol CO2/kg rich
I36: mst co2 akt | J36: =J33+J40 -> 2.451870672 | K36: kg/h
B37: mst co2 inlet | C37: =C27*C31 -> 1.395392354 | D37: kg/h | I37: nst co2 akt | J37: =J36/J26*1000 -> 55.71167171 | K37: mol CO2/h
B38: mst lean | C38: =C27*C19 -> 25.28933303 | D38: kg/h | E38: =C38/60 -> 0.4214888839 | F38: kg/min
B39: mst rich | C39: =C38+J40-(C35-C30) -> 26.62800523 | D39: kg/h | E39: =C39/60 -> 0.4438000872 | F39: kg/min | H39: Absorbovane | I39: delta mst co2 | J39: =J35-J33 -> 1.838049336 | K39: kg/h | L39: Maximum co jeste lze dodat do roztoku
B40: mst co2 des outlet | C40: =J40 -> 1.395392354 | D40: kg/h | E40: =C40/C27 -> 0.2207084469 | F40: =G27*E40 -> 1.290315364 | H40: Kontrola | I40: delta mst co2 | J40: =IF(J39>C37,C37,J39) -> 1.395392354 | K40: kg/h | L40: Aktualne co dodame do roztoku
B41: mst des outlet | C41: =C40/(1-E30) -> 1.405739484 | D41: kg/h | E41: Vcetne h20
B42: mst h20 des out | C42: =C41-C40 -> 0.01034713012 | I42: Fi | J42: =J40/C37 -> 1
A45: Choose | B45: w MEA | C45: 0.3 | D45: vypocet plati pro 30%wt | I45: nst co2 teor | J45: =J50*J30 -> 69.79100549 | K45: mol CO2/h
B46: alfa 40 | C46: =IF(C45=D54,D59,C59) -> 0.5295009365 | I46: mst co2 teor | J46: =J45*J26/1000 -> 3.071502152 | K46: kg/h
B47: alfa 120 | C47: =IF(C45=F54,F59,E59) -> 0.193263401 | I47: nst CO2 skut | J47: =C40/FlueGas!C10*1000 -> 31.70625662 | K47: mol CO2/h
B48: mst co2 abs outlet | C48: =C37-C40 -> 0 | I48: mst co2 skut | J48: =C40 -> 1.395392354 | K48: kg/h
N49: kontrola
I50: alfa teor | J50: =C60 -> 0.5618751867 | K50: mol CO2/ mol MEA | N50: =M32/J51*J25 -> 227.1357547
I51: alfa skut | J51: =J47/J30 -> 0.2552615302 | K51: mol CO2/ mol MEA
I52: Fi | J52: =J46/C37 -> 2.201174561 | K52: Ucinnost
C53: plati pro 40oC | E53: plati pro 120oC
C54: 0.3 | D54: 0.15 | E54: 0.3 | F54: 0.15
B55: a | C55: 4,868052 | D55: 2.454762 | E55: 83,8223 | F55: 46,47065
B56: b | C56: 12,77238 | D56: 8,701627 | E56: 4,921549 | F56: 5,469199
B57: c | C57: 1,810835 | D57: 0,8854914 | E57: 6,554695 | F57: 4,653588 | G57: kW | H57: Lepsi fitovani exp dat, rozsah do 200-250 mbar co2
B58: d | C58: 960216500 | D58: 7874,737 | E58: 2252498000 | F58: 970342600 | G58: kW | H58: Pomer q strip/q generator | L58: Qc=energie na kondenzace odparene vody
B59: alfa | C59: =$C$57*POWER(($C$55-$C$58)/(C28-$C$58)-1,1/$C$56) -> 0.5295009365 | D59: =$D$57*POWER(($D$55-$D$58)/(C28-$D$58)-1,1/$D$56) -> 0.5618751867 | E59: =$E$57*POWER(($E$55-$E$58)/(C28-$E$58)-1,1/$E$56) -> 0.193263401 | F59: =$F$57*POWER(($F$55-$F$58)/(C28-$F$58)-1,1/$F$56) -> 0.247193991 | G59: kW | H59: Rozdil q generator - q (bez strip)
B60: Choose | C60: =D59 -> 0.5618751867
I61: Kohl | J61: 2.68 | K61: W/cm2 | L61: 8500btu/hrft2=26814w/m2=17.3w/in2
I62: Notz | J62: 2 | K62: W/cm2
B65: q gen | C65: =3.584612 + (19.1416 - 3.584612)/(1 + (C28/20.32905)^2.199038) -> 3.774235086 | D65: GJ/t co2 | E65: Q gen | F65: =C65/3.6*$C$40 -> 1.462927439
B66: q cond | C66: =C65*(0.2134545 + (0.4407069 - 0.2134545)/(1 + (C28/60.33977)^5.543955)) -> 0.8110975385 | D66: GJ/t co2 | E66: Q cond | F66: =C66/3.6*$C$40 -> 0.3143886954
B67: q cond | C67: =C65-(3.006147 + (1478791 - 3.006147)/(1 + (C28/0.09026914)^2.369115)) -> 0.7334105715 | D67: GJ/t co2 | E67: Q cond | F67: =C67/3.6*$C$40 -> 0.2842765288
I69: cp MEA | J69: =0.62+J70*0.001222 -> 0.720815 | K69: kj/kgK | L69: zdroj: DOW MEA characteristics
A70: * | B70: Evaporator HD | C70: =F65 -> 1.462927439 | D70: kW | I70: temp mea | J70: =(C78+C80)/2 -> 82.5
B71: Heat density | C71: 20000 | D71: W/m2 | I71: w MEA | J71: =C45 -> 0.3
B72: S evap | C72: =C70/C71*1000 -> 0.07314637196 | D72: m2 | I72: cp h20 | J72: 4.2 | K72: kj/kgK
I73: cp total | J73: =J69*J71+J72*(1-J71) -> 3.1562445 | K73: kj/kgK
I74: Lv h20 | J74: 2200 | K74: kj/kg
A76: * | B76: Main Heat Exchanger
B77: Q HE | C77: =C38*J73/3600*(C81-C80) -> 1.441182136 | D77: kW | E77: 2 | F77: kW
B78: t lean in | C78: 120 | D78: °C | E78: Vystup z desorberu | G78: Zdroj: Alfa Laval
B79: t lean out | C79: =C77*3600/C39/J73 -> 61.73224891 | D79: °C
B80: t rich in | C80: 45 | D80: °C
B81: t rich out | C81: 110 | D81: °C | E81: Omezeni na vstupu desorberu
B82: dt1 | C82: =C78-C81 -> 10
B83: dt2 | C83: =C79-C80 -> 16.73224891
B84: lmtd | C84: =(C82-C83)/LN(C82/C83) -> 13.07860478
B85: S min | C85: =C77*1000/C86/C84 -> 0.1101938747 | D85: m2 | E85: =E77*1000/6000 -> 0.3333333333
B86: k | C86: 1000 | D86: w/m2K
A89: * | B89: Podchlazeni na vstupu do absorberu - lean solution
B90: Q cond | C90: =C38/3600*J73*(C91-C92) -> 0.4818481369 | D90: kW | F90: dt1 | G90: =C91-C102 -> 41.73224891
B91: t in | C91: =C79 -> 61.73224891 | F91: dt2 | G91: =C92-C101 -> 30
B92: t out | C92: 40 | F92: lmtd | G92: =(G90-G91)/LN(G90/G91) -> 35.543997
B93: S min | C93: =C90*1000/C94/G92 -> 0.01355638582 | D93: m2
B94: k | C94: 1000
A96: * | B96: Kondenzace par z desorberu h2o+co2
B97: =E66 -> Q cond | C97: =F66 -> 0.3143886954 | D97: =G58 -> kW | H97: 600 | K97: S | L97: 0.2 | M97: m2
B98: Lv=xx% Qcond | C98: 0.9 | D98: Zvolit pro pomer | H98: 8.69 | I98: =H98/3600 -> 0.002413888889 | K98: d out | L98: 10 | M98: mm
B99: m h20 cond | C99: =C97*C98*3600/J74 -> 0.463008806 | D99: kg/h | H99: 116 | K99: l | L99: 0.4 | M99: m
B100: m ch | C100: =C97*3600/(J72*(C102-C101)) -> 26.94760246 | D100: kg/h | H100: 18 | K100: c | L100: =PI()*L98/1000 -> 0.03141592654
B101: t ch in | C101: 10 | D101: °C | G101: s | H101: 0.1530612175 | I101: m2 | K101: n prur | L101: =L97/(L99*L100) -> 15.91549431
B102: t ch out | C102: 20 | D102: °C | G102: k | H102: =H97/H101/(H99-H100) -> 40.00000183 | K102: n tah | L102: =L101/2 -> 7.957747155
B103: Dopocteno podle ref. prikladu
B104: S min | C104: ='Kond (k'') Desorber'!L17 -> 0.1014584905 | D104: ='Kond (k'') Desorber'!M17 -> m2
B105: ='Kond (k'') Desorber'!N6 -> m1 | C105: ='Kond (k'') Desorber'!Q6 -> 0.4191849272 | D105: ='Kond (k'') Desorber'!R6 -> kg/h | E105: horka strana
B106: ='Kond (k'') Desorber'!N7 -> m2 | C106: ='Kond (k'') Desorber'!Q7 -> 27.07653836 | D106: ='Kond (k'') Desorber'!R7 -> kg/h | E106: chladna strana
B108: qreb | C108: =92905 -> 92905
B109: Lmea | C109: =C39 -> 26.62800523 | D109: kg/h | E109: =C109/1000 -> 0.02662800523 | F109: m3/h
B110: Q | C110: =C108*E109 -> 2473.874826

Sheet Kond (k') Desorber
B2: Referencni VT na kondenzaci par
B3: Zjisteni souc. K pro navrh | K3: Prepocet na aktualni hodnoty
B4: Q | C4: 11 | D4: kW | E4: =C4*1000 -> 11000 | F4: W | K4: Q | L4: =MainDesign!C97 -> 0.3143886954 | M4: kW
G5: 120oC 2 Bar
B6: k | C6: 100.7061265 | D6: W/m2K | G6: Vapour enthalpy | H6: 2700 | I6: kJ/kg | K6: t1 in | L6: 120 | N6: m1 | O6: =L4/H6 -> 0.0001164402576 | P6: kg/s | Q6: =O6*3600 -> 0.4191849272 | R6: kg/h
B7: S | C7: 3 | D7: m2 | K7: t1 out | L7: 20 | N7: m2 | O7: =L4/4.18/(L9-L8) -> 0.007521260656 | P7: kg/s | Q7: =O7*3600 -> 27.07653836 | R7: kg/h
K8: t2 in | L8: 10
K9: t2 out | L9: 20
B10: t1 in | C10: 120 | E10: m1 | F10: =C4/H6 -> 0.004074074074 | G10: kg/s | H10: =F10*3600 -> 14.66666667 | I10: kg/h | O10: 15789 | P10: W
B11: t1 out | C11: 20 | E11: m2 | F11: =C4/4.18/(C13-C12) -> 0.2631578947 | G11: kg/s | H11: =F11*3600 -> 947.3684211 | I11: kg/h | K11: dt1 | L11: =L6-L9 -> 100 | M11: hot | N11: t1 | O11: 120.57 | P11: cold | Q11: t1 | R11: 52
B12: t2 in | C12: 5 | K12: dt2 | L12: =L7-L8 -> 10 | N12: t1 | O12: 58 | Q12: t2 | R12: 112
B13: t2 out | C13: 15 | K13: lmtd | L13: =(L11-L12)/LN(L11/L12) -> 39.08650337 | O13: 256 | P13: kg/h | Q13: =O13/3600 -> 0.07111111111 | R13: kg/s
N14: cp | O14: =O10/Q13/(O11-O12) -> 3548.550623
B15: dt1 | C15: =C10-C13 -> 105 | F15: Q | G15: =F11*H6*100 -> 71052.63158 | K15: k | L15: =C19 -> 79.27782089
B16: dt2 | C16: =C11-C12 -> 15 | N16: Q=mcpdt | P16: dt1 | Q16: =O11-R12 -> 8.57
B17: lmtd | C17: =(C15-C16)/LN(C15/C16) -> 46.25085081 | K17: S | L17: =L4*1000/L15/L13 -> 0.1014584905 | M17: m2 | N17: Q=kSLMTD | P17: dt2 | Q17: =O12-R11 -> 6
P18: lmtd | Q18: =(Q16-Q17)/LN(Q16/Q17) -> 7.208809063
B19: k | C19: =E4/C7/C17 -> 79.27782089 | O19: S | P19: 6
O20: k | P20: =O10/P19/Q18 -> 365.0394923
M22: Notz A19 | N22: 911.7219487
M23: Notz A28 | N23: 207.723024
B24: Zdroj fitovani | C24: https://mycurvefit.com/
O25: pco2 | P25: q des
B26: pRG co2 | C26: q g | D26: q strip | E26: q/q | F26: q g (bez q strip) | O26: 35 | P26: 7.2
B27: 35 | C27: 7.2 | D27: 3.1 | E27: =D27/C27 -> 0.4305555556 | F27: =C27-D27 -> 4.1 | O27: 58 | P27: 5
B28: 58 | C28: 5 | D28: 1.7 | E28: =D28/C28 -> 0.34 | F28: =C28-D28 -> 3.3 | O28: 85 | P28: 4.2
B29: 85 | C29: 4.2 | D29: 1 | E29: =D29/C29 -> 0.2380952381 | F29: =C29-D29 -> 3.2 | O29: 110 | P29: 4
B30: 110 | C30: 4 | D30: 0.9 | E30: =D30/C30 -> 0.225 | F30: =C30-D30 -> 3.1 | O30: 135 | P30: 3.8
B31: 135 | C31: 3.8 | D31: 0.8 | E31: =D31/C31 -> 0.2105263158 | F31: =C31-D31 -> 3
B33: Aproximace zavislosti na pRG co2
B34: 3,584612 + (19,1416 - 3,584612)/(1 + (C29/20,32905)^2,199038)
B35: (0,2134545 + (0,4407069 - 0,2134545)/(1 + (C29/60,33977)^5,543955))
B36: (3,006147 + (1478791 - 3,006147)/(1 + (C29/0,09026914)^2,369115))
B39: RG - Rauchgas - spaliny
B50: A | C50: m2 | D50: 6 | Q50: MEA | S50: CASTOR1 | U50: CASTOR2
B51: t1in | D51: 117.2 | Q51: 2 | R51: 3.75 | S51: 2.3 | T51: 4.15 | U51: 1.7 | V51: 3.63
B52: t1out | D52: 56.9 | Q52: 2.4 | R52: 3.63 | S52: 2.55 | T52: 3.8 | U52: 1.95 | V52: 3.57
B53: t2in | C53: oC | D53: 53.53 | Q53: 2.7 | R53: 3.7 | S53: 2.9 | T53: 3.7 | U53: 2.1 | V53: 3.65
B54: t2out | C54: oC | D54: 111.3 | Q54: 3.1 | R54: 3.7 | S54: 3.3 | T54: 3.95 | U54: 2.5 | V54: 3.7
B55: tstr | D55: =AVERAGE(D53:D54) -> 82.415 | Q55: 3.7 | R55: 3.9 | S55: 3.6 | T55: 4.03 | U55: 2.9 | V55: 3.83
B56: m | C56: kg/h | D56: 359
B57: mst | C57: kg/s | D57: =D56/3600 -> 0.09972222222
B58: Q | C58: kW | D58: 21510
B59: wMea | D59: 0.1594499001
B60: cp | C60: kj/kgK | D60: =(1-D59)*4.2+D59*(0.62+D55*0.0012222) -> 3.645230366
B61: Q[] | D61: =D57*D60*(D54-D53) -> 21
B62: dt1 | D62: =D51-D54 -> 5.9
B63: dt2 | D63: =D52-D53 -> 3.37
B64: lmtd | D64: =(D62-D63)/LN(D62/D63) -> 4.517537636
B66: k` | D66: =D58/D50/D64 -> 793.5739089
H71: 41 1a_Flo Knuutila 2015 dynamic model verification.pdf
H72: 42 1a_Pinto 2014 pilot plant co2 capture experiment.pdf
H73: 15 1a_Tobiesen 2007 absorber validation.pdf
H74: 25 1a_Notz 2011 pilot plant description and results.pdf
L75: Tobiesen, 2007 [xx]
H76: Nina Enaasen Flø a,∗ , Hanna Knuutila a | L76: Finn Andrew Tobiesen b,∗ , Olav Juliussen b
H77: alfa rich | I77: kW | L77: alfa rich | M77: q des
H78: 0.42 | I78: 6.8 | L78: 0.32 | M78: 8.22
H79: 0.45 | I79: 9.2 | L79: 0.32 | M79: 8.47
H80: 0.49 | I80: 10 | L80: 0.31 | M80: 8.48
H81: 0.41 | I81: 10.4 | L81: 0.31 | M81: 8.82
H82: 0.49 | I82: 6.1 | L82: 0.26 | M82: 11.21
H83: 0.44 | I83: 8.3 | L83: 0.37 | M83: 6.58
L84: 0.29 | M84: 9.64
A85: Notz, 2010 [xx] | L85: 0.31 | M85: 7.95
A86: alfa rich | B86: q des | L86: 0.33 | M86: 7.52
A87: 0.386 | B87: 5.01 | L87: 0.34 | M87: 7.37
A88: 0.464 | B88: 3.98 | L88: 0.4 | M88: 5.74
A89: 0.308 | B89: 7.18 | L89: 0.39 | M89: 5.09
A90: 0.397 | B90: 5.05 | L90: 0.45 | M90: 4.66
A91: 0.446 | B91: 4.19 | L91: 0.46 | M91: 3.7
A92: 0.464 | B92: 3.85 | L92: 0.45 | M92: 5.34
A93: 0.478 | B93: 3.91 | L93: 0.45 | M93: 4.95
A94: 0.444 | B94: 4.22 | L94: 0.43 | M94: 4.21
A95: 0.393 | B95: 5.49 | L95: 0.41 | M95: 4.74
A96: 0.402 | B96: 5.65 | L96: 0.35 | M96: 6.67
A97: 0.396 | B97: 5.12
A98: 0.372 | B98: 4.91
A99: 0.4 | B99: 4.52
A100: 0.369 | B100: 5.48
A101: 0.359 | B101: 5.81
A102: 0.414 | B102: 7.38
A103: 0.371 | B103: 5.47
A104: 0.387 | B104: 5.38
A105: 0.354 | B105: 6.27
A106: 0.395 | B106: 5.1
A107: 0.4 | B107: 5.18
A108: 0.47 | B108: 3.68
A109: 0.297 | B109: 9.76
A110: 0.31 | B110: 7.16
A111: 0.318 | B111: 6.87

Sheet Tubes
A1: Kapaliny | B1: u str | C1: 1 | D1: m/s
I2: A min | K2: D min | M2: u akt
B3: m1 | C3: =MainDesign!C39 -> 26.62800523 | D3: kg/h | E3: =C3/3600 -> 0.00739666812 | F3: kg/s | G3: =E3/$C$6 -> 7.39666812e-06 | H3: m3/s | I3: =G3/$C$1 -> 7.39666812e-06 | J3: m2 | K3: =SQRT(4*I3/PI())*1000 -> 3.068832082 | L3: mm | M3: =G3/(PI()*POWER($C$10/1000,2)/4) -> 0.05572621509 | N3: m/s
B4: m2 | C4: =MainDesign!C38 -> 25.28933303 | D4: kg/h | E4: =C4/3600 -> 0.007024814731 | F4: kg/s | G4: =E4/$C$6 -> 7.024814731e-06 | H4: m3/s | I4: =G4/$C$1 -> 7.024814731e-06 | J4: m2 | K4: =SQRT(4*I4/PI())*1000 -> 2.990697562 | L4: mm | M4: =G4/(PI()*POWER($C$10/1000,2)/4) -> 0.05292468586 | N4: m/s
B6: rho LM | C6: 1000 | D6: kg/m3
M8: u str | N8: d min | O8: d prov | P8: d min | Q8: d prov
M9: [m/s] | N9: [m] | O9: [m] | P9: [mm] | Q9: [mm]
B10: D akt | C10: 13 | D10: mm | L10: Vstup, vystup plynne smesi | M10: 15 | N10: =P10/1000 -> 0.0147 | O10: =Q10/1000 -> 0.02 | P10: 14.7 | Q10: 20
L11: Vystup CO2 | M11: 15 | N11: =P11/1000 -> 0.0074 | O11: =Q11/1000 -> 0.015 | P11: 7.4 | Q11: 15
A12: Plyny | B12: u str | C12: 15 | D12: m/s | L12: Pracovni roztok | M12: 1 | N12: 0.0042 | O12: 0.01 | P12: 4.2 | Q12: 10
G13: A min | I13: D min
B14: Vst | C14: =MainDesign!G27 -> 5.846243688 | D14: =MainDesign!H27 -> m3/h | E14: =C14/3600 -> 0.00162395658 | F14: m3/s | G14: =E14/$C$12 -> 0.000108263772 | H14: m2 | I14: =SQRT(G14*4/PI())*1000 -> 11.74077152 | J14: mm
C15: =MainDesign!F40 -> 1.290315364 | E15: =C15/3600 -> 0.0003584209346 | G15: =E15/$C$12 -> 2.389472897e-05 | I15: =SQRT(G15*4/PI())*1000 -> 5.51576956

Sheet Naplne
C2: EX | F2: DX | I2: 250Y
C3: min. | D3: max. | F3: min. | G3: max. | I3: min. | J3: max.
B4: Fmax [Pa -0,5] | C4: 0,25 | D4: 1,25 | F4: 0,25 | G4: 2,25 | I4: 1 | J4: 3 | M4: 0.4 | N4: 1.2
B5: HETP | C5: 0,02 | D5: 0,06 | F5: 0,03 | G5: 0,07 | I5: 0,35 | J5: 0,4 | M5: 0.6 | N5: 1.4
B6: H [m] | C6: 0.4 | D6: 1.2 | F6: 0.6 | G6: 1.4 | I6: 7 | J6: 8 | M6: 7 | N6: 8
B7: m [kg/h] | C7: 1.264466652 | D7: 6.322333258 | F7: 1.264466652 | G7: 11.38019986 | I7: 5.057866606 | J7: 15.17359982
B8: dp [Pa] | C8: 40 | D8: 1800 | F8: 60 | G8: 2100 | I8: 210 | J8: 1600
M10: 1.264466652 | N10: 40
M11: 1.264466652 | N11: 60
M12: 5.057866606 | N12: 210
M13: 6.322333258 | N13: 1800 | P13: 1.264466652 | Q13: 6.322333258 | R13: 1.264466652 | S13: 11.38019986 | T13: 5.057866606 | U13: 15.17359982
M14: 11.38019986 | N14: 2100 | P14: 40 | Q14: 1800 | R14: 60 | S14: 2100 | T14: 210 | U14: 1600
M15: 15.17359982 | N15: 1600

Sheet MassBalance
A2: CO2 | B2: =MainDesign!C48 -> 0
A3: H20 | B3: =MainDesign!C35 -> 0.2471690673 | E3: =MainDesign!M32 -> 0.9492308498 | L3: Priprava tabulky pro textovou cast
A4: MEA | B4: 0 | E4: =MainDesign!C38 -> 25.28933303 | L4: jednotka | M4: kg/h
A5: Total | B5: =MainDesign!C34 -> 4.983661057 | H5: CO2 | I5: =MainDesign!C40 -> 1.395392354 | K5: Podminky | M5: Napln | N5: =MainDesign!C16 -> EX
C6: X | D6: CO2 | E6: =MainDesign!J33 -> 1.056478318 | F6: 5 | H6: H20 | I6: =I8-I5 -> 0.01034713012 | M6: p co2 | N6: =MainDesign!C20 -> 150
C7: mrozt | D7: H20 | E7: =E9-E8-E6-I6 -> 16.63570767 | H7: MEA | I7: 0 | M7: L/G | N7: =MainDesign!C19 -> 4
C8: mco2 | D8: MEA | E8: =MainDesign!J29 -> 7.58679991 | H8: Total | I8: =MainDesign!C41 -> 1.405739484 | M8: F | N8: =MainDesign!E21 -> 1.25
A9: 2 | D9: Total | E9: =MainDesign!C38 -> 25.28933303 | F9: 4 | M9: omega | N9: 0.3
K10: Proud | L10: 1 | M10: 2 | N10: 3 | O10: 4 | P10: 5
D11: Lean | K11: CO2 | L11: =B20 -> 1.395392354 | M11: =B2 -> 0 | N11: =E17 -> 2.451870672 | O11: =E6 -> 1.056478318 | P11: =I5 -> 1.395392354
C12: Fi | D12: =MainDesign!J42 -> 1 | E12: alfa | F12: =MainDesign!C46 -> 0.5295009365 | K12: H20 | L12: =B21 -> 0.1904489148 | M12: =B3 -> 0.2471690673 | N12: =E18 -> 16.58933465 | O12: =E7 -> 16.63570767 | P12: =I6 -> 0.01034713012
C13: Absorbovane | D13: =MainDesign!J40 -> 1.395392354 | E13: alfa | F13: =MainDesign!C47 -> 0.193263401 | K13: MEA | L13: =B22 -> 0 | M13: =B4 -> 0 | N13: =E19 -> 7.58679991 | O13: =E8 -> 7.58679991 | P13: =I7 -> 0
D14: Rich | K14: Inerty | L14: =L15-SUM(L11:L13) -> 4.736491989 | M14: =M15-SUM(M11:M13) -> 4.736491989 | N14: 0 | O14: 0 | P14: 0
K15: Total | L15: =B23 -> 6.322333258 | M15: =B5 -> 4.983661057 | N15: =E20 -> 26.62800523 | O15: =E9 -> 25.28933303 | P15: =I8 -> 1.405739484
C16: 3
C17: mco2 teor | D17: CO2 | E17: =MainDesign!J36 -> 2.451870672
A18: 1 | C18: mco2 akt | D18: H20 | E18: =E20-E19-E17 -> 16.58933465
C19: mrozt | D19: MEA | E19: =E8 -> 7.58679991 | K19: Varianty | M19: 1 | N19: 2 | O19: 3 | P19: 4 | Q19: 5 | R19: 6 | S19: 7
A20: CO2 | B20: =MainDesign!C37 -> 1.395392354 | C20: X | D20: Total | E20: =MainDesign!C39 -> 26.62800523 | J20: =N5 -> EX | K20: Napln | M20: EX | N20: EX | O20: EX | P20: EX | Q20: EX | R20: DX | S20: DX
A21: H20 | B21: =MainDesign!C30 -> 0.1904489148 | J21: =N6 -> 150 | K21: p co2 | L21: [mbar] | M21: 150 | N21: 150 | O21: 150 | P21: 150 | Q21: 300 | R21: 150 | S21: 300
A22: MEA | E22: =MainDesign!J35 -> 2.894527654 | J22: =N7 -> 4 | K22: L/G | L22: [-] | M22: 2 | N22: 2 | O22: 3 | P22: 4 | Q22: 4 | R22: 2 | S22: 2
A23: Total | B23: =MainDesign!C25 -> 6.322333258 | E23: =MainDesign!C39 -> 26.62800523 | J23: =N8 -> 1.25 | K23: F | M23: 0.25 | N23: 1.25 | O23: 1.25 | P23: 1.25 | Q23: 1.25 | R23: 2.25 | S23: 2.25
E24: =MainDesign!M35 -> 2.092220999 | J24: =N9*100 -> 30 | K24: omega | M24: 30 | N24: 30 | O24: 30 | P24: 30 | Q24: 30 | R24: 30 | S24: 30
J25: =B23 -> 6.322333258 | K25: m inlet | L25: [kg/h] | M25: 1.264466652 | N25: 6.322333258 | O25: 6.322333258 | P25: 6.322333258 | Q25: 6.322333258 | R25: 11.38019986 | S25: 11.38019986
C26: Energie | J26: =I5 -> 1.395392354 | K26: m co2 outlet | L26: [kg/h] | M26: 0.08601055828 | N26: 0.4300527914 | O26: 0.6450791871 | P26: 0.8601055828 | Q26: 0.8725662162 | R26: 1.654244402 | S26: 1.544563028
C27: Qdes | D27: =MainDesign!C70 -> 1.462927439 | J27: =F12 -> 0.5295009365 | K27: alfa lean | L27: mol/mol | M27: 0.5618751867 | N27: 0.5618751867 | O27: 0.5618751867 | P27: 0.5618751867 | Q27: 0.6104170855 | R27: 0.5295009365 | S27: 0.5597590147
C28: Qcond | D28: =MainDesign!C97 -> 0.3143886954 | J28: =D12*100 -> 100 | K28: Fi | L28: [%] | M28: 30.81948888 | N28: 30.81948888 | O28: 46.22923332 | P28: 61.63897776 | Q28: 33.77474394 | R28: 65.86138051 | S28: 33.21442979
C29: Qchlad | D29: =MainDesign!C90 -> 0.4818481369 | J29: =D27 -> 1.462927439 | K29: Qdes | L29: kW | M29: 0.09017335189 | N29: 0.4508667595 | O29: 0.6763001392 | P29: 0.9017335189 | Q29: 0.8789422945 | R29: 1.734307573 | S29: 1.55584957
J30: =D28 -> 0.3143886954 | K30: Qcond | L30: kW | M30: 0.01937859781 | N30: 0.09689298903 | O30: 0.1453394835 | P30: 0.1937859781 | Q30: 0.1876416636 | R30: 0.3727093229 | S30: 0.3321517275
J31: =D29 -> 0.4818481369 | K31: Qchlad | L31: kW | M31: 0.0478212362 | N31: 0.239106181 | O31: 0.3548961858 | P31: 0.4706986585 | Q31: 0.4708010386 | R31: 0.3248208444 | S31: 0.3314413012
C37: Napln | E37: =N5 -> EX
C38: L/G | E38: =J22 -> 4
C39: F | E39: =K23 -> F
C40: dpz | D40: [Pa] | E40: =MainDesign!Q11 -> 1800
C41: w | E41: =J24 -> 30
C42: mst inlet | D42: [kg/h] | E42: =B23 -> 6.322333258
C43: pco2 | D43: [mbar] | E43: =J21 -> 150
C44: mst co2 outlet | D44: [kg/h] | E44: =J26 -> 1.395392354
C45: Fi | D45: [%] | E45: =J28 -> 100
C46: m rozt | D46: [kg]
C47: Qdes | D47: [kW] | E47: =J29 -> 1.462927439
C48: S evap | E48: =MainDesign!C72 -> 0.07314637196
C49: QVT1 | D49: [kW] | E49: =MainDesign!C77 -> 1.441182136
C50: Q kond | D50: [kW] | E50: =J30 -> 0.3143886954
C51: S kond | E51: =MainDesign!C104 -> 0.1014584905
C52: Qchlad | D52: [kW] | E52: =J31 -> 0.4818481369

Sheet FlueGas
B2: Vybrany typ | C2: =MainDesign!C17 -> CoalPlant | G2: =MainDesign!C20 -> 150 | H2: =G2/1000 -> 0.15 | K2: Molove slozeni smesi plynu
B3: Tlak inlet | C3: =MainDesign!C18 -> 1000 | K3: Zdroj/Typ | L3: CoalPlant | M3: GasPlant | N3: Column1 | O3: Syngas | P3: SyngasTampa | Q3: NaturalGas | R3: Mix | S3: Biogas1 | T3: Biogas2
B4: w co2 inlet | C4: =E10 -> 0.2207084469 | K4: CO2 | L4: =H2 -> 0.15 | M4: 0.05 | N4: 0.01 | O4: 0.17 | P4: 0.14 | Q4: 0.01 | R4: 0.15 | S4: 0.2 | T4: 0.5
B5: p I co2 | C5: =H10 -> 150 | D5: mbar | K5: N2 | L5: =L15-L4-L8 -> 0.8 | M5: =L15-M4-M8-M7 -> 0.7718948634 | N5: 0.99 | Q5: 0.07 | R5: 0.8
B6: w h20 inlet | C6: =E14 -> 0.03012320088 | D6: =WHumid!E2 -> 0.04959588232 | E6: Vypocet z WHumid | K6: H2 | O6: 0.35 | P6: 0.29
K7: O2 | M7: 0.1
B8: Tabulka prepoctu hmotnostniho slozeni | K8: H2O | L8: 0.05 | M8: 0.07810513663 | P8: 0.2 | R8: 0.05
C9: M | D9: m | E9: c m | F9: n | G9: c n | H9: pi | K9: CO | O9: 0.46 | P9: 0.35
B10: CO2 | C10: 44.01 | D10: =F10*C10 -> 6.6015 | E10: =D10/$D$18 -> 0.2207084469 | F10: =INDEX(Table2[],MATCH(B10,Table2[Zdroj/Typ],0),MATCH($C$2,TypPlynu,0)+1) -> 0.15 | G10: =F10/$F$18 -> 0.15 | H10: =$C$3*G10 -> 150 | K10: CH4 | O10: 0.02 | P10: 0.02 | Q10: 0.82 | S10: 0.8 | T10: 0.5
B11: N2 | C11: 28.01 | D11: =F11*C11 -> 22.408 | E11: =D11/$D$18 -> 0.7491683523 | F11: =INDEX(Table2[],MATCH(B11,Table2[Zdroj/Typ],0),MATCH($C$2,TypPlynu,0)+1) -> 0.8 | G11: =F11/$F$18 -> 0.8 | H11: =$C$3*G11 -> 800 | K11: C2H6 C4H8 … | Q11: 0.1
B12: H2 | C12: 2 | D12: 0 | E12: 0 | F12: =INDEX(Table2[],MATCH(B12,Table2[Zdroj/Typ],0),MATCH($C$2,TypPlynu,0)+1) -> 0 | G12: 0 | H12: =$C$3*G12 -> 0 | K12: Total | L12: =SUBTOTAL(109,Table2[CoalPlant]) -> 1 | M12: =SUBTOTAL(109,Table2[GasPlant]) -> 1 | N12: =SUBTOTAL(109,Table2[Column1]) -> 1 | O12: =SUBTOTAL(109,Table2[Syngas]) -> 1 | P12: =SUBTOTAL(109,Table2[SyngasTampa]) -> 1 | Q12: =SUBTOTAL(109,Table2[NaturalGas]) -> 1 | R12: =SUBTOTAL(109,Table2[Mix]) -> 1 | S12: =SUBTOTAL(109,Table2[Biogas1]) -> 1 | T12: =SUBTOTAL(109,Table2[Biogas2]) -> 1
B13: O2 | C13: 32 | D13: 0 | E13: 0 | F13: =INDEX(Table2[],MATCH(B13,Table2[Zdroj/Typ],0),MATCH($C$2,TypPlynu,0)+1) -> 0 | G13: 0 | H13: 0
B14: H2O | C14: 18.02 | D14: =F14*C14 -> 0.901 | E14: =D14/$D$18 -> 0.03012320088 | F14: =INDEX(Table2[],MATCH(B14,Table2[Zdroj/Typ],0),MATCH($C$2,TypPlynu,0)+1) -> 0.05 | G14: 0.05 | H14: =$C$3*G14 -> 50
B15: CO | C15: 28.01 | D15: 0 | E15: 0 | F15: =INDEX(Table2[],MATCH(B15,Table2[Zdroj/Typ],0),MATCH($C$2,TypPlynu,0)+1) -> 0 | G15: 0 | H15: 0 | K15: ! | L15: 1
B16: CH4 | C16: 16.04 | D16: 0 | E16: 0 | F16: =INDEX(Table2[],MATCH(B16,Table2[Zdroj/Typ],0),MATCH($C$2,TypPlynu,0)+1) -> 0 | G16: 0 | H16: 0
B18: Kontoly/sumy | D18: =SUM(D10:D16) -> 29.9105 | E18: =SUM(E10:E16) -> 1 | F18: =SUM(F10:F16) -> 1 | H18: =SUM(H10:H16) -> 1000

Sheet Inlet diff
A1: inlet | B1: Flue gas inlet red | C1: mst co2 inlet | D1: mst co2 outlet | E1: Qdes | F1: Qcond | G1: Qchlad | H1: Fi | J1: mst co2 lean | K1: mst co2 rich | M1: absorbovane | N1: x lean | O1: x rich
A2: =MainDesign!C26 -> 1 | B2: =MainDesign!C27 -> 6.322333258 | C2: =MassBalance!B20 -> 1.395392354 | D2: =MainDesign!C40 -> 1.395392354 | E2: =MassBalance!D27 -> 1.462927439 | F2: =MassBalance!D28 -> 0.3143886954 | G2: =MassBalance!D29 -> 0.4818481369 | H2: =MassBalance!D12 -> 1 | J2: =MassBalance!E6 -> 1.056478318 | K2: =MassBalance!E17 -> 2.451870672 | M2: =MassBalance!D13 -> 1.395392354 | N2: =MassBalance!E3 -> 0.9492308498 | O2: =MassBalance!E24 -> 2.092220999
A5: inlet | B5: Flue gas inlet red | C5: mst co2 inlet | D5: mst co2 outlet | E5: Qdes | F5: Qcond | G5: Qchlad | H5: Fi
A6: 0.1 | B6: 0.6322333258 | C6: 0.1395392354 | D6: 0.1395392354 | E6: 0.1462927439 | F6: 0.03143886954 | G6: 0.03766706007 | H6: 1
A7: 0.11 | B7: 0.6954566584 | C7: 0.1534931589 | D7: 0.1534931589 | E7: 0.1609220183 | F7: 0.03458275649 | G7: 0.04143376608 | H7: 1
A8: 0.12 | B8: 0.758679991 | C8: 0.1674470825 | D8: 0.1674470825 | E8: 0.1755512927 | F8: 0.03772664345 | G8: 0.04520047209 | H8: 1
A9: 0.13 | B9: 0.8219033235 | C9: 0.181401006 | D9: 0.181401006 | E9: 0.1901805671 | F9: 0.0408705304 | G9: 0.04896717809 | H9: 1
A10: 0.14 | B10: 0.8851266561 | C10: 0.1953549296 | D10: 0.1953549296 | E10: 0.2048098415 | F10: 0.04401441736 | G10: 0.0527338841 | H10: 1
A11: 0.15 | B11: 0.9483499887 | C11: 0.2093088531 | D11: 0.2093088531 | E11: 0.2194391159 | F11: 0.04715830431 | G11: 0.05650059011 | H11: 1
A12: 0.16 | B12: 1.011573321 | C12: 0.2232627766 | D12: 0.2232627766 | E12: 0.2340683903 | F12: 0.05030219126 | G12: 0.06026729611 | H12: 1
A13: 0.17 | B13: 1.074796654 | C13: 0.2372167002 | D13: 0.2372167002 | E13: 0.2486976647 | F13: 0.05344607822 | G13: 0.06403400212 | H13: 1
A14: 0.18 | B14: 1.138019986 | C14: 0.2511706237 | D14: 0.2511706237 | E14: 0.263326939 | F14: 0.05658996517 | G14: 0.06780070813 | H14: 1
A15: 0.19 | B15: 1.201243319 | C15: 0.2651245472 | D15: 0.2651245472 | E15: 0.2779562134 | F15: 0.05973385213 | G15: 0.07156741413 | H15: 1
A16: 0.2 | B16: 1.264466652 | C16: 0.2790784708 | D16: 0.2790784708 | E16: 0.2925854878 | F16: 0.06287773908 | G16: 0.07533412014 | H16: 1
A17: 0.21 | B17: 1.327689984 | C17: 0.2930323943 | D17: 0.2930323943 | E17: 0.3072147622 | F17: 0.06602162603 | G17: 0.07910082615 | H17: 1
A18: 0.22 | B18: 1.390913317 | C18: 0.3069863179 | D18: 0.3069863179 | E18: 0.3218440366 | F18: 0.06916551299 | G18: 0.08286753216 | H18: 1
A19: 0.23 | B19: 1.454136649 | C19: 0.3209402414 | D19: 0.3209402414 | E19: 0.336473311 | F19: 0.07230939994 | G19: 0.08663423816 | H19: 1
A20: 0.24 | B20: 1.517359982 | C20: 0.3348941649 | D20: 0.3348941649 | E20: 0.3511025854 | F20: 0.0754532869 | G20: 0.09040094417 | H20: 1
A21: 0.25 | B21: 1.580583314 | C21: 0.3488480885 | D21: 0.3488480885 | E21: 0.3657318598 | F21: 0.07859717385 | G21: 0.09416765018 | H21: 1
A22: 0.26 | B22: 1.643806647 | C22: 0.362802012 | D22: 0.362802012 | E22: 0.3803611342 | F22: 0.0817410608 | G22: 0.09793435618 | H22: 1
A23: 0.27 | B23: 1.70702998 | C23: 0.3767559356 | D23: 0.3767559356 | E23: 0.3949904086 | F23: 0.08488494776 | G23: 0.1017010622 | H23: 1
A24: 0.28 | B24: 1.770253312 | C24: 0.3907098591 | D24: 0.3907098591 | E24: 0.409619683 | F24: 0.08802883471 | G24: 0.1054677682 | H24: 1
A25: 0.29 | B25: 1.833476645 | C25: 0.4046637826 | D25: 0.4046637826 | E25: 0.4242489574 | F25: 0.09117272167 | G25: 0.1092344742 | H25: 1
A26: 0.3 | B26: 1.896699977 | C26: 0.4186177062 | D26: 0.4186177062 | E26: 0.4388782317 | F26: 0.09431660862 | G26: 0.1130011802 | H26: 1
A27: 0.31 | B27: 1.95992331 | C27: 0.4325716297 | D27: 0.4325716297 | E27: 0.4535075061 | F27: 0.09746049558 | G27: 0.1167678862 | H27: 1
A28: 0.32 | B28: 2.023146643 | C28: 0.4465255533 | D28: 0.4465255533 | E28: 0.4681367805 | F28: 0.1006043825 | G28: 0.1205345922 | H28: 1
A29: 0.33 | B29: 2.086369975 | C29: 0.4604794768 | D29: 0.4604794768 | E29: 0.4827660549 | F29: 0.1037482695 | G29: 0.1243012982 | H29: 1
A30: 0.34 | B30: 2.149593308 | C30: 0.4744334003 | D30: 0.4744334003 | E30: 0.4973953293 | F30: 0.1068921564 | G30: 0.1280680042 | H30: 1
A31: 0.35 | B31: 2.21281664 | C31: 0.4883873239 | D31: 0.4883873239 | E31: 0.5120246037 | F31: 0.1100360434 | G31: 0.1318347102 | H31: 1
A32: 0.36 | B32: 2.276039973 | C32: 0.5023412474 | D32: 0.5023412474 | E32: 0.5266538781 | F32: 0.1131799303 | G32: 0.1356014163 | H32: 1
A33: 0.37 | B33: 2.339263305 | C33: 0.516295171 | D33: 0.516295171 | E33: 0.5412831525 | F33: 0.1163238173 | G33: 0.1393681223 | H33: 1
A34: 0.38 | B34: 2.402486638 | C34: 0.5302490945 | D34: 0.5302490945 | E34: 0.5559124269 | F34: 0.1194677043 | G34: 0.1431348283 | H34: 1
A35: 0.39 | B35: 2.465709971 | C35: 0.544203018 | D35: 0.544203018 | E35: 0.5705417013 | F35: 0.1226115912 | G35: 0.1469015343 | H35: 1
A36: 0.4 | B36: 2.528933303 | C36: 0.5581569416 | D36: 0.5581569416 | E36: 0.5851709757 | F36: 0.1257554782 | G36: 0.1506682403 | H36: 1
A37: 0.41 | B37: 2.592156636 | C37: 0.5721108651 | D37: 0.5721108651 | E37: 0.5998002501 | F37: 0.1288993651 | G37: 0.1544349463 | H37: 1
A38: 0.42 | B38: 2.655379968 | C38: 0.5860647887 | D38: 0.5860647887 | E38: 0.6144295244 | F38: 0.1320432521 | G38: 0.1582016523 | H38: 1
A39: 0.43 | B39: 2.718603301 | C39: 0.6000187122 | D39: 0.6000187122 | E39: 0.6290587988 | F39: 0.135187139 | G39: 0.1619683583 | H39: 1
A40: 0.44 | B40: 2.781826633 | C40: 0.6139726357 | D40: 0.6139726357 | E40: 0.6436880732 | F40: 0.138331026 | G40: 0.1657350643 | H40: 1
A41: 0.45 | B41: 2.845049966 | C41: 0.6279265593 | D41: 0.6279265593 | E41: 0.6583173476 | F41: 0.1414749129 | G41: 0.1695017703 | H41: 1
A42: 0.46 | B42: 2.908273299 | C42: 0.6418804828 | D42: 0.6418804828 | E42: 0.672946622 | F42: 0.1446187999 | G42: 0.1732684763 | H42: 1
A43: 0.47 | B43: 2.971496631 | C43: 0.6558344063 | D43: 0.6558344063 | E43: 0.6875758964 | F43: 0.1477626868 | G43: 0.1770351823 | H43: 1
A44: 0.48 | B44: 3.034719964 | C44: 0.6697883299 | D44: 0.6697883299 | E44: 0.7022051708 | F44: 0.1509065738 | G44: 0.1808018883 | H44: 1
A45: 0.49 | B45: 3.097943296 | C45: 0.6837422534 | D45: 0.6837422534 | E45: 0.7168344452 | F45: 0.1540504607 | G45: 0.1845685943 | H45: 1
A46: 0.5 | B46: 3.161166629 | C46: 0.697696177 | D46: 0.697696177 | E46: 0.7314637196 | F46: 0.1571943477 | G46: 0.1883353004 | H46: 1
A47: 0.51 | B47: 3.224389962 | C47: 0.7116501005 | D47: 0.7116501005 | E47: 0.746092994 | F47: 0.1603382347 | G47: 0.1921020064 | H47: 1
A48: 0.52 | B48: 3.287613294 | C48: 0.725604024 | D48: 0.725604024 | E48: 0.7607222684 | F48: 0.1634821216 | G48: 0.1958687124 | H48: 1
A49: 0.53 | B49: 3.350836627 | C49: 0.7395579476 | D49: 0.7395579476 | E49: 0.7753515428 | F49: 0.1666260086 | G49: 0.1996354184 | H49: 1
A50: 0.54 | B50: 3.414059959 | C50: 0.7535118711 | D50: 0.7535118711 | E50: 0.7899808171 | F50: 0.1697698955 | G50: 0.2034021244 | H50: 1
A51: 0.55 | B51: 3.477283292 | C51: 0.7674657947 | D51: 0.7674657947 | E51: 0.8046100915 | F51: 0.1729137825 | G51: 0.2071688304 | H51: 1
A52: 0.56 | B52: 3.540506624 | C52: 0.7814197182 | D52: 0.7814197182 | E52: 0.8192393659 | F52: 0.1760576694 | G52: 0.2109355364 | H52: 1
A53: 0.57 | B53: 3.603729957 | C53: 0.7953736417 | D53: 0.7953736417 | E53: 0.8338686403 | F53: 0.1792015564 | G53: 0.2147022424 | H53: 1
A54: 0.58 | B54: 3.66695329 | C54: 0.8093275653 | D54: 0.8093275653 | E54: 0.8484979147 | F54: 0.1823454433 | G54: 0.2184689484 | H54: 1
A55: 0.59 | B55: 3.730176622 | C55: 0.8232814888 | D55: 0.8232814888 | E55: 0.8631271891 | F55: 0.1854893303 | G55: 0.2222356544 | H55: 1
A56: 0.6 | B56: 3.793399955 | C56: 0.8372354124 | D56: 0.8372354124 | E56: 0.8777564635 | F56: 0.1886332172 | G56: 0.2260023604 | H56: 1
A57: 0.61 | B57: 3.856623287 | C57: 0.8511893359 | D57: 0.8511893359 | E57: 0.8923857379 | F57: 0.1917771042 | G57: 0.2297690664 | H57: 1
A58: 0.62 | B58: 3.91984662 | C58: 0.8651432594 | D58: 0.8651432594 | E58: 0.9070150123 | F58: 0.1949209912 | G58: 0.2335357724 | H58: 1
A59: 0.63 | B59: 3.983069953 | C59: 0.879097183 | D59: 0.879097183 | E59: 0.9216442867 | F59: 0.1980648781 | G59: 0.2373024784 | H59: 1
A60: 0.64 | B60: 4.046293285 | C60: 0.8930511065 | D60: 0.8930511065 | E60: 0.9362735611 | F60: 0.2012087651 | G60: 0.2410691845 | H60: 1
A61: 0.65 | B61: 4.109516618 | C61: 0.9070050301 | D61: 0.9070050301 | E61: 0.9509028355 | F61: 0.204352652 | G61: 0.2448358905 | H61: 1
A62: 0.66 | B62: 4.17273995 | C62: 0.9209589536 | D62: 0.9209589536 | E62: 0.9655321098 | F62: 0.207496539 | G62: 0.2486025965 | H62: 1
A63: 0.67 | B63: 4.235963283 | C63: 0.9349128771 | D63: 0.9349128771 | E63: 0.9801613842 | F63: 0.2106404259 | G63: 0.2523693025 | H63: 1
A64: 0.68 | B64: 4.299186615 | C64: 0.9488668007 | D64: 0.9488668007 | E64: 0.9947906586 | F64: 0.2137843129 | G64: 0.2561360085 | H64: 1
A65: 0.69 | B65: 4.362409948 | C65: 0.9628207242 | D65: 0.9628207242 | E65: 1.009419933 | F65: 0.2169281998 | G65: 0.2599027145 | H65: 1
A66: 0.7 | B66: 4.425633281 | C66: 0.9767746478 | D66: 0.9767746478 | E66: 1.024049207 | F66: 0.2200720868 | G66: 0.2636694205 | H66: 1
A67: 0.71 | B67: 4.488856613 | C67: 0.9907285713 | D67: 0.9907285713 | E67: 1.038678482 | F67: 0.2232159737 | G67: 0.2674361265 | H67: 1
A68: 0.72 | B68: 4.552079946 | C68: 1.004682495 | D68: 1.004682495 | E68: 1.053307756 | F68: 0.2263598607 | G68: 0.2712028325 | H68: 1
A69: 0.73 | B69: 4.615303278 | C69: 1.018636418 | D69: 1.018636418 | E69: 1.067937031 | F69: 0.2295037476 | G69: 0.2749695385 | H69: 1
A70: 0.74 | B70: 4.678526611 | C70: 1.032590342 | D70: 1.032590342 | E70: 1.082566305 | F70: 0.2326476346 | G70: 0.2787362445 | H70: 1
A71: 0.75 | B71: 4.741749943 | C71: 1.046544265 | D71: 1.046544265 | E71: 1.097195579 | F71: 0.2357915216 | G71: 0.2825029505 | H71: 1
A72: 0.76 | B72: 4.804973276 | C72: 1.060498189 | D72: 1.060498189 | E72: 1.111824854 | F72: 0.2389354085 | G72: 0.2862696565 | H72: 1
A73: 0.77 | B73: 4.868196609 | C73: 1.074452113 | D73: 1.074452113 | E73: 1.126454128 | F73: 0.2420792955 | G73: 0.2900363625 | H73: 1
A74: 0.78 | B74: 4.931419941 | C74: 1.088406036 | D74: 1.088406036 | E74: 1.141083403 | F74: 0.2452231824 | G74: 0.2938030686 | H74: 1
A75: 0.79 | B75: 4.994643274 | C75: 1.10235996 | D75: 1.10235996 | E75: 1.155712677 | F75: 0.2483670694 | G75: 0.2975697746 | H75: 1
A76: 0.8 | B76: 5.057866606 | C76: 1.116313883 | D76: 1.116313883 | E76: 1.170341951 | F76: 0.2515109563 | G76: 0.3013364806 | H76: 1
A77: 0.81 | B77: 5.121089939 | C77: 1.130267807 | D77: 1.130267807 | E77: 1.184971226 | F77: 0.2546548433 | G77: 0.3051031866 | H77: 1
A78: 0.82 | B78: 5.184313272 | C78: 1.14422173 | D78: 1.14422173 | E78: 1.1996005 | F78: 0.2577987302 | G78: 0.3088698926 | H78: 1
A79: 0.83 | B79: 5.247536604 | C79: 1.158175654 | D79: 1.158175654 | E79: 1.214229775 | F79: 0.2609426172 | G79: 0.3126365986 | H79: 1
A80: 0.84 | B80: 5.310759937 | C80: 1.172129577 | D80: 1.172129577 | E80: 1.228859049 | F80: 0.2640865041 | G80: 0.3164033046 | H80: 1
A81: 0.85 | B81: 5.373983269 | C81: 1.186083501 | D81: 1.186083501 | E81: 1.243488323 | F81: 0.2672303911 | G81: 0.3201700106 | H81: 1
A82: 0.86 | B82: 5.437206602 | C82: 1.200037424 | D82: 1.200037424 | E82: 1.258117598 | F82: 0.270374278 | G82: 0.3239367166 | H82: 1
A83: 0.87 | B83: 5.500429934 | C83: 1.213991348 | D83: 1.213991348 | E83: 1.272746872 | F83: 0.273518165 | G83: 0.3277034226 | H83: 1
A84: 0.88 | B84: 5.563653267 | C84: 1.227945271 | D84: 1.227945271 | E84: 1.287376146 | F84: 0.276662052 | G84: 0.3314701286 | H84: 1
A85: 0.89 | B85: 5.6268766 | C85: 1.241899195 | D85: 1.241899195 | E85: 1.302005421 | F85: 0.2798059389 | G85: 0.3352368346 | H85: 1
A86: 0.9 | B86: 5.690099932 | C86: 1.255853119 | D86: 1.255853119 | E86: 1.316634695 | F86: 0.2829498259 | G86: 0.3390035406 | H86: 1
A87: 0.91 | B87: 5.753323265 | C87: 1.269807042 | D87: 1.269807042 | E87: 1.33126397 | F87: 0.2860937128 | G87: 0.3427702466 | H87: 1
A88: 0.92 | B88: 5.816546597 | C88: 1.283760966 | D88: 1.283760966 | E88: 1.345893244 | F88: 0.2892375998 | G88: 0.3465369527 | H88: 1
A89: 0.93 | B89: 5.87976993 | C89: 1.297714889 | D89: 1.297714889 | E89: 1.360522518 | F89: 0.2923814867 | G89: 0.3503036587 | H89: 1
A90: 0.94 | B90: 5.942993262 | C90: 1.311668813 | D90: 1.311668813 | E90: 1.375151793 | F90: 0.2955253737 | G90: 0.3540703647 | H90: 1
A91: 0.95 | B91: 6.006216595 | C91: 1.325622736 | D91: 1.325622736 | E91: 1.389781067 | F91: 0.2986692606 | G91: 0.3578370707 | H91: 1
A92: 0.96 | B92: 6.069439928 | C92: 1.33957666 | D92: 1.33957666 | E92: 1.404410342 | F92: 0.3018131476 | G92: 0.3616037767 | H92: 1
A93: 0.97 | B93: 6.13266326 | C93: 1.353530583 | D93: 1.353530583 | E93: 1.419039616 | F93: 0.3049570345 | G93: 0.3653704827 | H93: 1
A94: 0.98 | B94: 6.195886593 | C94: 1.367484507 | D94: 1.367484507 | E94: 1.43366889 | F94: 0.3081009215 | G94: 0.3691371887 | H94: 1
A95: 0.99 | B95: 6.259109925 | C95: 1.38143843 | D95: 1.38143843 | E95: 1.448298165 | F95: 0.3112448084 | G95: 0.3729038947 | H95: 1
A96: 1 | B96: 6.322333258 | C96: 1.395392354 | D96: 1.395392354 | E96: 1.462927439 | F96: 0.3143886954 | G96: 0.3766706007 | H96: 1

Sheet pi-LG-fi
A1: Qdes | B1: =MainDesign!C70 -> 1.462927439 | C1: lg
C2: 2 | D2: 2.2 | E2: 2.4 | F2: 2.6 | G2: 2.8 | H2: 3 | I2: 3.2 | J2: 3.4 | K2: 3.6 | L2: 3.8 | M2: 4
A3: pi | B3: 100 | C3: 1.072424213 | D3: 1.072424213 | E3: 1.072424213 | F3: 1.072424213 | G3: 1.072424213 | H3: 1.072424213 | I3: 1.072424213 | J3: 1.072424213 | K3: 1.072424213 | L3: 1.072424213 | M3: 1.072424213
B4: 110 | C4: 1.069756992 | D4: 1.148849048 | E4: 1.148849048 | F4: 1.148849048 | G4: 1.148849048 | H4: 1.148849048 | I4: 1.148849048 | J4: 1.148849048 | K4: 1.148849048 | L4: 1.148849048 | M4: 1.148849048
B5: 120 | C5: 1.031397472 | D5: 1.13453722 | E5: 1.22653666 | F5: 1.22653666 | G5: 1.22653666 | H5: 1.22653666 | I5: 1.22653666 | J5: 1.22653666 | K5: 1.22653666 | L5: 1.22653666 | M5: 1.22653666
B6: 130 | C6: 1.003037446 | D6: 1.10334119 | E6: 1.203644935 | F6: 1.303948679 | G6: 1.304998341 | H6: 1.304998341 | I6: 1.304998341 | J6: 1.304998341 | K6: 1.304998341 | L6: 1.304998341 | M6: 1.304998341
B7: 140 | C7: 0.9810748698 | D7: 1.079182357 | E7: 1.177289844 | F7: 1.275397331 | G7: 1.373504818 | H7: 1.383881425 | I7: 1.383881425 | J7: 1.383881425 | K7: 1.383881425 | L7: 1.383881425 | M7: 1.383881425
B8: 150 | C8: 0.9635042073 | D8: 1.059854628 | E8: 1.156205049 | F8: 1.252555469 | G8: 1.34890589 | H8: 1.445256311 | I8: 1.462927439 | J8: 1.462927439 | K8: 1.462927439 | L8: 1.462927439 | M8: 1.462927439
B9: 160 | C9: 0.9490930823 | D9: 1.04400239 | E9: 1.138911699 | F9: 1.233821007 | G9: 1.328730315 | H9: 1.423639623 | I9: 1.518548932 | J9: 1.541944333 | K9: 1.541944333 | L9: 1.541944333 | M9: 1.541944333
B10: 170 | C10: 0.9370341946 | D10: 1.030737614 | E10: 1.124441034 | F10: 1.218144453 | G10: 1.311847872 | H10: 1.405551292 | I10: 1.499254711 | J10: 1.592958131 | K10: 1.620787735 | L10: 1.620787735 | M10: 1.620787735
B11: 180 | C11: 0.926773986 | D11: 1.019451385 | E11: 1.112128783 | F11: 1.204806182 | G11: 1.29748358 | H11: 1.390160979 | I11: 1.482838378 | J11: 1.575515776 | K11: 1.668193175 | L11: 1.699348071 | M11: 1.699348071
B12: 190 | C12: 0.9179194345 | D12: 1.009711378 | E12: 1.101503321 | F12: 1.193295265 | G12: 1.285087208 | H12: 1.376879152 | I12: 1.468671095 | J12: 1.560463039 | K12: 1.652254982 | L12: 1.744046925 | M12: 1.77754155
B13: 200 | C13: 0.9101836277 | D13: 1.00120199 | E13: 1.092220353 | F13: 1.183238716 | G13: 1.274257079 | H13: 1.365275442 | I13: 1.456293804 | J13: 1.547312167 | K13: 1.63833053 | L13: 1.729348893 | M13: 1.820367255
A17: fi | B17: =MainDesign!J42 -> 1

Sheet pi diff
A1: inlet | B1: Flue gas inlet red | C1: mst co2 inlet | D1: mst co2 outlet | E1: Qdes | F1: Qcond | G1: Fi | H1: Qchlad | J1: mst co2 lean | K1: mst co2 rich | M1: absorbovane | N1: x lean | O1: x rich
A2: =MainDesign!C20 -> 150 | B2: =MainDesign!C27 -> 6.322333258 | C2: =MassBalance!B20 -> 1.395392354 | D2: =MainDesign!C40 -> 1.395392354 | E2: =MassBalance!D27 -> 1.462927439 | F2: =MassBalance!D28 -> 0.3143886954 | G2: =MassBalance!D12 -> 1 | H2: =MassBalance!D29 -> 0.4818481369 | J2: =MassBalance!E6 -> 1.056478318 | K2: =MassBalance!E17 -> 2.451870672 | M2: =MassBalance!D13 -> 1.395392354 | N2: =MassBalance!E3 -> 0.9492308498 | O2: =MassBalance!E24 -> 2.092220999
L3: var.: B | M3: 1 | N3: 1 | O3: 1 | P3: 2 | Q3: 2 | R3: 2 | S3: 3 | T3: 3 | U3: 3 | V3: 4 | W3: 4 | X3: 4 | Y3: 5 | Z3: 5 | AA3: 5 | AB3: 6 | AC3: 6 | AD3: 6
J4: Napln | K4: =MainDesign!C16 -> EX | L4: Napln | M4: EX | P4: EX | S4: DX | V4: EX | Y4: EX | AB4: DX
A5: inlet | B5: Flue gas inlet red | C5: mst co2 inlet | D5: mst co2 outlet | E5: Qdes | F5: Qcond | G5: Fi | H5: Qchlad | J5: L/G | K5: =MainDesign!C19 -> 4 | L5: L/G | M5: 2 | P5: 2 | S5: 2 | V5: 2 | Y5: 2 | AB5: 2
A6: 50 | B6: 11.38019986 | C6: 0.8845527208 | J6: F | K6: =MainDesign!E21 -> 1.25 | L6: F | M6: 1.25 | P6: 0.25 | S6: 2.25 | V6: 1.25 | Y6: 0.25 | AB6: 2.25
A7: 60 | B7: 11.38019986 | C7: 1.055497998 | L7: w | M7: 0.15 | P7: 0.15 | S7: 0.15 | V7: 0.3 | Y7: 0.3 | AB7: 0.3
A8: 70 | B8: 11.38019986 | C8: 1.224532639 | L8: pCO2 | M8: Qdes | N8: Qkond | O8: Fi | P8: Qdes | Q8: Qkond | R8: Fi | S8: Qdes | T8: Qkond | U8: Fi | V8: Qdes | W8: Qkond | X8: Fi | Y8: Qdes | Z8: Qkond | AA8: Fi | AB8: Qdes | AC8: Qkond | AD8: Fi
A9: 80 | B9: 11.38019986 | C9: 1.391688497 | M9: =CONCATENATE($L$3,M3) -> var.: B1 | N9: =CONCATENATE($L$3,N3) -> var.: B1 | O9: var.: B1 | P9: var.: B2 | Q9: var.: B2 | R9: var.: B2 | S9: var.: B3 | T9: var.: B3 | U9: var.: B3 | V9: var.: B4 | W9: var.: B4 | X9: var.: B4 | Y9: var.: B5 | Z9: var.: B5 | AA9: var.: B5 | AB9: var.: B6 | AC9: var.: B6 | AD9: var.: B6
A10: 90 | B10: 11.38019986 | C10: 1.556996723 | D10: 1.556996723 | E10: 1.796311538 | F10: 0.4235469729 | G10: 1 | H10: 0.3290189074 | L10: 50 | M10: 0.7465885766 | N10: 0.2847873074 | O10: 0.9992336292 | P10: 0.1493177153 | Q10: 0.05695746149 | R10: 0.9992336292 | S10: 1.343859438 | T10: 0.5126171534 | U10: 0.9992336292 | V10: =V11*$AE10 -> 1.88966131 | W10: 0.4182093278 | X10: 1 | Y10: =Y11*$AE10 -> 0.377932262 | Z10: =Z11*$AE10 -> 0.08364186555 | AA10: 1 | AB10: =AB11*$AE10 -> 3.401390358 | AC10: =AC11*$AE10 -> 0.75277679 | AD10: 1 | AE10: 1.15 | AG10: =O10*100 -> 99.92336292 | AH10: =X10*100 -> 100
A11: 100 | B11: 11.38019986 | C11: 1.720487783 | D11: 1.720487783 | E11: 1.930363584 | F11: 0.437175437 | G11: 1 | H11: 0.321147984 | L11: 60 | M11: 0.6200882694 | N11: 0.2039216963 | O11: 0.7765298759 | P11: 0.1240176539 | Q11: 0.04078433926 | R11: 0.7765298759 | S11: 1.116158885 | T11: 0.3670590533 | U11: 0.7765298759 | V11: 1.643183748 | W11: 0.363660285 | X11: 1 | Y11: 0.3286367495 | Z11: 0.072732057 | AA11: 1 | AB11: 2.957730746 | AC11: 0.654588513 | AD11: 1 | AE11: 1.13 | AG11: =O11*100 -> 77.65298759 | AH11: =X11*100 -> 100
A12: 110 | B12: 11.38019986 | C12: 1.882191475 | D12: 1.752612752 | E12: 1.925562586 | F12: 0.4261547984 | G12: 0.9311553979 | H12: 0.3196887467 | L12: 70 | M12: 0.5600967615 | N12: 0.158384728 | O12: 0.6518424722 | P12: 0.1120193523 | Q12: 0.0316769456 | R12: 0.6518424722 | S12: 1.008174171 | T12: 0.2850925104 | U12: 0.6518424722 | V12: 1.454144909 | W12: 0.3218232611 | X12: 1 | Y12: 0.2908289819 | Z12: 0.06436465221 | AA12: 1 | AB12: 2.617460837 | AC12: 0.5792818699 | AD12: 1 | AE12: 1.11 | AG12: 65.18424722 | AH12: 100
A13: 120 | B13: 11.38019986 | C13: 2.042136951 | D13: 1.717237616 | E13: 1.85651545 | F13: 0.4054102211 | G13: 0.8409022791 | H13: 0.3214906382 | L13: 80 | M13: 0.5242524728 | N13: 0.13253059 | O13: 0.5658932628 | P13: 0.1048504946 | Q13: 0.02650611801 | R13: 0.5658932628 | S13: 0.9436544511 | T13: 0.2385550621 | U13: 0.5658932628 | V13: 1.310040459 | W13: 0.2899308658 | X13: 1 | Y13: 0.2620080918 | Z13: 0.05798617317 | AA13: 1 | AB13: 2.358072826 | AC13: 0.5218755585 | AD13: 1 | AE13: 1.09 | AG13: 56.58932628 | AH13: 100
A14: 130 | B14: 11.38019986 | C14: 2.200352731 | D14: 1.691217616 | E14: 1.805467402 | F14: 0.3911257581 | G14: 0.7686120465 | H14: 0.322843163 | L14: 90 | M14: 0.5009328543 | N14: 0.1181134728 | O14: 0.5019614464 | P14: 0.1001865709 | Q14: 0.02362269457 | R14: 0.5019614464 | S14: 0.9016791377 | T14: 0.2126042511 | U14: 0.5019614464 | V14: 1.201871981 | W14: 0.26599162 | X14: 1 | Y14: 0.2403743961 | Z14: 0.05319832401 | AA14: 1 | AB14: 2.163369565 | AC14: 0.4787849161 | AD14: 1 | AE14: 1.07 | AG14: 50.19614464 | AH14: 100
A15: 140 | B15: 11.38019986 | C15: 2.356866723 | D15: 1.670853204 | E15: 1.765934766 | F15: 0.3806875283 | G15: 0.7089298633 | H15: 0.3239229141 | L15: 100 | M15: 0.4849562241 | N15: 0.1098295424 | O15: 0.4522055899 | P15: 0.09699124481 | Q15: 0.02196590848 | R15: 0.4522055899 | S15: 0.8729212033 | T15: 0.1976931764 | U15: 0.4522055899 | V15: =V16*$AE15 -> 1.123244842 | W15: =W16*$AE15 -> 0.2485902991 | X15: 1 | Y15: =Y16*$AE15 -> 0.2246489684 | Z15: =Z16*$AE15 -> 0.04971805982 | AA15: 1 | AB15: =AB16*$AE15 -> 2.021840715 | AC15: =AC16*$AE15 -> 0.4474625384 | AD15: 1 | AE15: 1.05 | AG15: 45.22055899 | AH15: 100
A16: 150 | B16: 11.38019986 | C16: 2.511706237 | D16: 1.654244402 | E16: 1.734307573 | F16: 0.3727093229 | G16: 0.6586138051 | H16: 0.3248208444 | L16: 110 | M16: 0.47360456 | N16: 0.1048155263 | O16: 0.4122426362 | P16: 0.094720912 | Q16: 0.02096310525 | R16: 0.4122426362 | S16: 0.852488208 | T16: 0.1886679473 | U16: 0.4122426362 | V16: 1.069756992 | W16: 0.2367526658 | X16: 0.9311553979 | Y16: 0.2139513984 | Z16: 0.04735053316 | AA16: 0.9311553979 | AB16: 1.925562586 | AC16: 0.4261547984 | AD16: 0.9311553979 | AG16: 41.22426362 | AH16: 93.11553979
A17: 160 | B17: 11.38019986 | C17: 2.664898002 | D17: 1.640290252 | E17: 1.708367548 | F17: 0.3663933018 | G17: 0.6155170859 | H17: 0.32558978 | L17: 120 | M17: 0.4653165068 | N17: 0.101611903 | O17: 0.3793743164 | P17: 0.09306330136 | Q17: 0.0203223806 | R17: 0.3793743164 | S17: 0.8375697123 | T17: 0.1829014254 | U17: 0.3793743164 | V17: 1.031397472 | W17: 0.2252279006 | X17: 0.8409022791 | Y17: 0.2062794945 | Z17: 0.04504558012 | AA17: 0.8409022791 | AB17: 1.85651545 | AC17: 0.4054102211 | AD17: 0.8409022791 | AG17: 37.93743164 | AH17: 84.09022791
A18: 170 | B18: 11.38019986 | C18: 2.81646818 | D18: 1.628298966 | E18: 1.68666155 | F18: 0.3612507459 | G18: 0.5781350477 | H18: 0.3262629794 | L18: 130 | M18: 0.4591376679 | N18: 0.09946486336 | O18: 0.3518300778 | P18: 0.09182753358 | Q18: 0.01989297267 | R18: 0.3518300778 | S18: 0.8264478023 | T18: 0.179036754 | U18: 0.3518300778 | V18: 1.003037446 | W18: 0.2172920878 | X18: 0.7686120465 | Y18: 0.2006074891 | Z18: 0.04345841757 | AA18: 0.7686120465 | AB18: 1.805467402 | AC18: 0.3911257581 | AD18: 0.7686120465 | AG18: 35.18300778 | AH18: 76.86120465
A19: 180 | B19: 11.38019986 | C19: 2.966442384 | D19: 1.617809606 | E19: 1.668193175 | F19: 0.3569668241 | G19: 0.545370311 | H19: 0.3268626408 | L19: 140 | M19: 0.4544566317 | N19: 0.09796849531 | O19: 0.3283927534 | P19: 0.09089132633 | Q19: 0.01959369906 | R19: 0.3283927534 | S19: 0.818021937 | T19: 0.1763432916 | U19: 0.3283927534 | V19: 0.9810748698 | W19: 0.2114930713 | X19: 0.7089298633 | Y19: 0.196214974 | Z19: 0.04229861425 | AA19: 0.7089298633 | AB19: 1.765934766 | AC19: 0.3806875283 | AD19: 0.7089298633 | AG19: 32.83927534 | AH19: 70.89298633
A20: 190 | B20: 11.38019986 | C20: 3.11484569 | D20: 1.608501019 | E20: 1.652254982 | F20: 0.3533300651 | G20: 0.5163983 | H20: 0.3274042543 | L20: 150 | M20: 0.4508667595 | N20: 0.09689298903 | O20: 0.3081948888 | P20: 0.09017335189 | Q20: 0.01937859781 | R20: 0.3081948888 | S20: 0.811560167 | T20: 0.1744073802 | U20: 0.3081948888 | V20: 0.9635042073 | W20: 0.207060735 | X20: 0.6586138051 | Y20: 0.1927008415 | Z20: 0.04141214699 | AA20: 0.6586138051 | AB20: 1.734307573 | AC20: 0.3727093229 | AD20: 0.6586138051 | AG20: 30.81948888 | AH20: 65.86138051
A21: 200 | B21: 11.38019986 | C21: 3.261702649 | D21: 1.6001414 | E21: 1.63833053 | F21: 0.3501933352 | G21: 0.4905846952 | H21: 0.3278990168 | L21: 160 | M21: 0.4480891048 | N21: 0.09610159524 | O21: 0.290600053 | P21: 0.08961782096 | Q21: 0.01922031905 | R21: 0.290600053 | S21: 0.8065603887 | T21: 0.1729828714 | U21: 0.290600053 | V21: 0.9490930823 | W21: 0.2035518344 | X21: 0.6155170859 | Y21: 0.1898186165 | Z21: 0.04071036687 | AA21: 0.6155170859 | AB21: 1.708367548 | AC21: 0.3663933018 | AD21: 0.6155170859 | AG21: 29.0600053 | AH21: 61.55170859
A22: 210 | B22: 11.38019986 | C22: 3.407037306 | D22: 1.592558557 | E22: 1.626034049 | F22: 0.3474511565 | G22: 0.4674320865 | H22: 0.3283552566 | L22: 170 | M22: 0.4459272466 | N22: 0.0955091141 | O22: 0.2751299488 | P22: 0.08918544932 | Q22: 0.01910182282 | R22: 0.2751299488 | S22: 0.8026690439 | T22: 0.1719164054 | U22: 0.2751299488 | V22: 0.9370341946 | W22: 0.2006948588 | X22: 0.5781350477 | Y22: 0.1874068389 | Z22: 0.04013897176 | AA22: 0.5781350477 | AB22: 1.68666155 | AC22: 0.3612507459 | AD22: 0.5781350477 | AG22: 27.51299488 | AH22: 57.81350477
A23: 220 | B23: 11.38019986 | C23: 3.550873209 | D23: 1.585621486 | E23: 1.615071718 | F23: 0.3450259487 | G23: 0.4465441012 | H23: 0.3287793184 | L23: 180 | M23: 0.444239733 | N23: 0.09506024186 | O23: 0.2614177405 | P23: 0.08884794661 | Q23: 0.01901204837 | R23: 0.2614177405 | S23: 0.7996315195 | T23: 0.1711084354 | U23: 0.2614177405 | V23: 0.926773986 | W23: 0.1983149023 | X23: 0.545370311 | Y23: 0.1853547972 | Z23: 0.03966298046 | AA23: 0.545370311 | AB23: 1.668193175 | AC23: 0.3569668241 | AD23: 0.545370311 | AG23: 26.14177405 | AH23: 54.5370311
A24: 230 | B24: 11.38019986 | C24: 3.693233423 | D24: 1.579228485 | E24: 1.605215963 | F24: 0.3428593747 | G24: 0.4276005072 | H24: 0.3291761339 | L24: 190 | M24: 0.442922689 | N24: 0.09471776709 | O24: 0.2491771228 | P24: 0.08858453781 | Q24: 0.01894355342 | R24: 0.2491771228 | S24: 0.7972608403 | T24: 0.1704919808 | U24: 0.2491771228 | V24: 0.9179194345 | W24: 0.1962944806 | X24: 0.5163983 | Y24: 0.1835838869 | Z24: 0.03925889612 | AA24: 0.5163983 | AB24: 1.652254982 | AC24: 0.3533300651 | AD24: 0.5163983 | AG24: 24.91771228 | AH24: 51.63983
A25: 240 | B25: 11.38019986 | C25: 3.834140542 | D25: 1.573299216 | E25: 1.59628791 | F25: 0.3409067141 | G25: 0.4103394749 | H25: 0.329549604 | L25: 200 | M25: 0.4418985142 | N25: 0.09445585717 | O25: 0.2381812211 | P25: 0.08837970284 | Q25: 0.01889117143 | R25: 0.2381812211 | S25: 0.7954173256 | T25: 0.1700205429 | U25: 0.2381812211 | V25: 0.9101836277 | W25: 0.1945518529 | X25: 0.4905846952 | Y25: 0.1820367255 | Z25: 0.03891037058 | AA25: 0.4905846952 | AB25: 1.63833053 | AC25: 0.3501933352 | AD25: 0.4905846952 | AG25: 23.81812211 | AH25: 49.05846952
A26: 250 | B26: 11.38019986 | C26: 3.973616699 | D26: 1.567769251 | E26: 1.588145119 | F26: 0.339133102 | G26: 0.3945446604 | H26: 0.3299028612 | L26: 210 | M26: 0.4411083494 | N26: 0.09425608657 | O26: 0.228247836 | P26: 0.08822166987 | Q26: 0.01885121731 | R26: 0.228247836 | S26: 0.7939950289 | T26: 0.1696609558 | U26: 0.228247836 | V26: 0.9033522497 | W26: 0.1930284203 | X26: 0.4674320865 | Y26: 0.1806704499 | Z26: 0.03860568405 | AA26: 0.4674320865 | AB26: 1.626034049 | AC26: 0.3474511565 | AD26: 0.4674320865 | AG26: 22.8247836 | AH26: 46.74320865
A27: 260 | B27: 11.38019986 | C27: 4.111683585 | D27: 1.562586234 | E27: 1.58067284 | F27: 0.3375109505 | G27: 0.3800356232 | H27: 0.3302384543 | L27: 220 | M27: 0.4405069414 | N27: 0.09410500082 | O27: 0.2192289006 | P27: 0.08810138829 | Q27: 0.01882100016 | R27: 0.2192289006 | S27: 0.7929124946 | T27: 0.1693890015 | U27: 0.2192289006 | V27: 0.8972620658 | W27: 0.1916810826 | X27: 0.4465441012 | Y27: 0.1794524132 | Z27: 0.03833621652 | AA27: 0.4465441012 | AB27: 1.615071718 | AC27: 0.3450259487 | AD27: 0.4465441012 | AG27: 21.92289006 | AH27: 44.65441012
A28: 270 | B28: 11.38019986 | C28: 4.248362449 | D28: 1.557707109 | E28: 1.573777644 | F28: 0.3360181386 | G28: 0.3666605963 | H28: 0.3305584824 | L28: 230 | M28: 0.4400590734 | N28: 0.09399257309 | O28: 0.2110028041 | P28: 0.08801181468 | Q28: 0.01879851462 | R28: 0.2110028041 | S28: 0.7921063321 | T28: 0.1691866316 | U28: 0.2110028041 | V28: 0.8917866461 | W28: 0.1904774304 | X28: 0.4276005072 | Y28: 0.1783573292 | Z28: 0.03809548607 | AA28: 0.4276005072 | AB28: 1.605215963 | AC28: 0.3428593747 | AD28: 0.4276005072 | AG28: 21.10028041 | AH28: 42.76005072
A29: 280 | B29: 11.38019986 | C29: 4.383674118 | D29: 1.553096102 | E29: 1.567382739 | F29: 0.3346367194 | G29: 0.3542909579 | H29: 0.3308646919 | L29: 240 | M29: 0.4397370367 | N29: 0.09391119693 | O29: 0.2034687067 | P29: 0.08794740734 | Q29: 0.01878223939 | R29: 0.2034687067 | S29: 0.7915266661 | T29: 0.1690401545 | U29: 0.2034687067 | V29: 0.8868266165 | W29: 0.1893926189 | X29: 0.4103394749 | Y29: 0.1773653233 | Z29: 0.03787852379 | AA29: 0.4103394749 | AB29: 1.59628791 | AC29: 0.3409067141 | AD29: 0.4103394749 | AG29: 20.34687067 | AH29: 41.03394749
A30: 290 | B30: 11.38019986 | C30: 4.517639006 | D30: 1.548723205 | E30: 1.561424453 | F30: 0.3333519767 | G30: 0.3428169456 | H30: 0.3311585504 | L30: 250 | M30: 0.4395188135 | N30: 0.09385501162 | O30: 0.1965422669 | P30: 0.08790376271 | Q30: 0.01877100232 | R30: 0.1965422669 | S30: 0.7911338644 | T30: 0.1689390209 | U30: 0.1965422669 | V30: 0.8823028441 | W30: 0.1884072789 | X30: 0.3945446604 | Y30: 0.1764605688 | Z30: 0.03768145578 | AA30: 0.3945446604 | AB30: 1.588145119 | AC30: 0.339133102 | AD30: 0.3945446604 | AG30: 19.65422669 | AH30: 39.45446604
A31: 300 | B31: 11.38019986 | C31: 4.650277118 | D31: 1.544563028 | E31: 1.55584957 | F31: 0.3321517275 | G31: 0.3321442979 | H31: 0.3314413012 | L31: 260 | M31: 0.4393867494 | N31: 0.09381943922 | O31: 0.1901523853 | P31: 0.08787734989 | Q31: 0.01876388784 | R31: 0.1901523853 | S31: 0.790896149 | T31: 0.1688749906 | U31: 0.1901523853 | V31: 0.8781515778 | W31: 0.1875060836 | X31: 0.3800356232 | Y31: 0.1756303156 | Z31: 0.03750121673 | AA31: 0.3800356232 | AB31: 1.58067284 | AC31: 0.3375109505 | AD31: 0.3800356232 | AG31: 19.01523853 | AH31: 38.00356232
A32: 310 | B32: 11.38019986 | C32: 4.781608068 | D32: 1.540593923 | E32: 1.550613278 | F32: 0.3310257978 | G32: 0.3221915935 | H32: 0.3317140062 | L32: 270 | M32: 0.4393265725 | N32: 0.09380086044 | O32: 0.1842386938 | P32: 0.0878653145 | Q32: 0.01876017209 | R32: 0.1842386938 | S32: 0.7907878305 | T32: 0.1688415488 | U32: 0.1842386938 | V32: 0.8743209132 | W32: 0.1866767437 | X32: 0.3666605963 | Y32: 0.1748641826 | Z32: 0.03733534874 | AA32: 0.3666605963 | AB32: 1.573777644 | AC32: 0.3360181386 | AD32: 0.3666605963 | AG32: 18.42386938 | AH32: 36.66605963
A33: 320 | B33: 11.38019986 | C33: 4.911651085 | D33: 1.536797302 | E33: 1.545677594 | F33: 0.3299656237 | G33: 0.3128881257 | H33: 0.3319775789 | L33: 280 | M33: 0.4393266581 | N33: 0.09379638294 | O33: 0.1787495967 | P33: 0.08786533162 | Q33: 0.01875927659 | R33: 0.1787495967 | S33: 0.7907879846 | T33: 0.1688334893 | U33: 0.1787495967 | V33: 0.8707681884 | W33: 0.1859092886 | X33: 0.3542909579 | Y33: 0.1741536377 | Z33: 0.03718185771 | AA33: 0.3542909579 | AB33: 1.567382739 | AC33: 0.3346367194 | AD33: 0.3542909579 | AG33: 17.87495967 | AH33: 35.42909579
A34: 330 | B34: 11.38019986 | C34: 5.040425022 | D34: 1.533157098 | E34: 1.541010108 | F34: 0.3289639434 | G34: 0.3041721861 | H34: 0.3322328104 | L34: 290 | M34: 0.4393774725 | N34: 0.09380367306 | O34: 0.1736407272 | P34: 0.08787549449 | Q34: 0.01876073461 | R34: 0.1736407272 | S34: 0.7908794504 | T34: 0.1688466115 | U34: 0.1736407272 | V34: 0.8674580297 | W34: 0.1851955426 | X34: 0.3428169456 | Y34: 0.1734916059 | Z34: 0.03703910852 | AA34: 0.3428169456 | AB34: 1.561424453 | AC34: 0.3333519767 | AD34: 0.3428169456 | AG34: 17.36407272 | AH34: 34.28169456
A35: 340 | B35: 11.38019986 | C35: 5.167948366 | D35: 1.529659341 | E35: 1.536583009 | F35: 0.3280145582 | G35: 0.2959896718 | H35: 0.3324803898 | L35: 300 | M35: 0.4394711472 | N35: 0.09382083179 | O35: 0.1688737197 | P35: 0.08789422945 | Q35: 0.01876416636 | R35: 0.1688737197 | S35: 0.791048065 | T35: 0.1688774972 | U35: 0.1688737197 | V35: 0.864360872 | W35: 0.1845287375 | X35: 0.3321442979 | Y35: 0.1728721744 | Z35: 0.0369057475 | AA35: 0.3321442979 | AB35: 1.55584957 | AC35: 0.3321517275 | AD35: 0.3321442979 | AG35: 16.88737197 | AH35: 33.21442979
A36: 350 | B36: 11.38019986 | C36: 5.294239248 | D36: 1.526291816 | E36: 1.532372299 | F36: 0.3271121442 | G36: 0.2882929435 | H36: 0.3327209209 | L36: 310 | M36: 0.4396011505 | N36: 0.09384630173 | O36: 0.1644152252 | P36: 0.0879202301 | Q36: 0.01876926035 | R36: 0.1644152252 | S36: 0.7912820709 | T36: 0.1689233431 | U36: 0.1644152252 | V36: 0.8614518213 | W36: 0.183903221 | X36: 0.3221915935 | Y36: 0.1722903643 | Z36: 0.0367806442 | AA36: 0.3221915935 | AB36: 1.550613278 | AC36: 0.3310257978 | AD36: 0.3221915935 | AG36: 16.44152252 | AH36: 32.21915935
A37: 360 | B37: 11.38019986 | C37: 5.419315447 | D37: 1.523043789 | E37: 1.528357158 | F37: 0.3262521019 | G37: 0.2810398848 | H37: 0.3329549355 | L37: 320 | M37: 0.4397620307 | N37: 0.0938787968 | O37: 0.1602361143 | P37: 0.08795240614 | Q37: 0.01877575936 | R37: 0.1602361143 | S37: 0.7915716553 | T37: 0.1689818342 | U37: 0.1602361143 | V37: 0.8587097744 | W37: 0.1833142354 | X37: 0.3128881257 | Y37: 0.1717419549 | Z37: 0.03666284708 | AA37: 0.3128881257 | AB37: 1.545677594 | AC37: 0.3299656237 | AD37: 0.3128881257 | AG37: 16.02361143 | AH37: 31.28881257
A38: 370 | B38: 11.38019986 | C38: 5.543194404 | D38: 1.51990578 | E38: 1.524519445 | F38: 0.3254304369 | G38: 0.2741931221 | H38: 0.3331829043 | L38: 330 | M38: 0.4399492157 | N38: 0.09391724824 | O38: 0.1563108283 | P38: 0.08798984313 | Q38: 0.01878344965 | R38: 0.1563108283 | S38: 0.7919085882 | T38: 0.1690510468 | U38: 0.1563108283 | V38: 0.8561167267 | W38: 0.1827577463 | X38: 0.3041721861 | Y38: 0.1712233453 | Z38: 0.03655154926 | AA38: 0.3041721861 | AB38: 1.541010108 | AC38: 0.3289639434 | AD38: 0.3041721861 | AG38: 15.63108283 | AH38: 30.41721861
A39: 380 | B39: 11.38019986 | C39: 5.665893228 | D39: 1.51686938 | E39: 1.520843273 | F39: 0.3246436626 | G39: 0.2677193726 | H39: 0.3334052456 | L39: 340 | M39: 0.4401588527 | N39: 0.09396076277 | O39: 0.1526168468 | P39: 0.08803177054 | Q39: 0.01879215255 | R39: 0.1526168468 | S39: 0.7922859348 | T39: 0.169129373 | U39: 0.1526168468 | V39: 0.8536572274 | W39: 0.1822303101 | X39: 0.2959896718 | Y39: 0.1707314455 | Z39: 0.03644606203 | AA39: 0.2959896718 | AB39: 1.536583009 | AC39: 0.3280145582 | AD39: 0.2959896718 | AG39: 15.26168468 | AH39: 29.59896718
A40: 390 | B40: 11.38019986 | C40: 5.787428703 | D40: 1.513927102 | E40: 1.517314673 | F40: 0.3238887216 | G40: 0.2615888989 | H40: 0.3336223333 | L40: 350 | M40: 0.440387682 | N40: 0.09400858988 | O40: 0.1491342477 | P40: 0.0880775364 | Q40: 0.01880171798 | R40: 0.1491342477 | S40: 0.7926978276 | T40: 0.1692154618 | U40: 0.1491342477 | V40: 0.8513179436 | W40: 0.181728969 | X40: 0.2882929435 | Y40: 0.1702635887 | Z40: 0.0363457938 | AA40: 0.2882929435 | AB40: 1.532372299 | AC40: 0.3271121442 | AD40: 0.2882929435 | AG40: 14.91342477 | AH40: 28.82929435
A41: 400 | B41: 11.38019986 | C41: 5.907817296 | D41: 1.511072247 | E41: 1.513921311 | F41: 0.3231629212 | G41: 0.255775047 | H41: 0.3338345023 | L41: 360 | M41: 0.4406329346 | N41: 0.09406009605 | O41: 0.1458453421 | P41: 0.08812658693 | Q41: 0.01881201921 | R41: 0.1458453421 | S41: 0.7931392823 | T41: 0.1693081729 | U41: 0.1458453421 | V41: 0.8490873101 | W41: 0.1812511677 | X41: 0.2810398848 | Y41: 0.169817462 | Z41: 0.03625023354 | AA41: 0.2810398848 | AB41: 1.528357158 | AC41: 0.3262521019 | AD41: 0.2810398848 | AG41: 14.58453421 | AH41: 28.10398848
A42: 410 | B42: 11.38019986 | C42: 6.027075164 | D42: 1.508298805 | E42: 1.510652256 | F42: 0.3224638798 | G42: 0.2502538568 | H42: 0.334042054 | L42: 370 | M42: 0.44089225 | N42: 0.09411474414 | O42: 0.1427343686 | P42: 0.08817845 | Q42: 0.01882294883 | R42: 0.1427343686 | S42: 0.79360605 | T42: 0.1694065395 | U42: 0.1427343686 | V42: 0.8469552475 | W42: 0.1807946872 | X42: 0.2741931221 | Y42: 0.1693910495 | Z42: 0.03615893744 | AA42: 0.2741931221 | AB42: 1.524519445 | AC42: 0.3254304369 | AD42: 0.2741931221 | AG42: 14.27343686 | AH42: 27.41931221
A43: 420 | B43: 11.38019986 | C43: 6.145218163 | D43: 1.505601364 | E43: 1.507497784 | F43: 0.3217894831 | G43: 0.2450037288 | H43: 0.3342452608 | L43: 380 | M43: 0.4411636088 | N43: 0.09417207696 | O43: 0.1397872378 | P43: 0.08823272177 | Q43: 0.01883441539 | R43: 0.1397872378 | S43: 0.7940944959 | T43: 0.1695097385 | U43: 0.1397872378 | V43: 0.8449129296 | W43: 0.1803575903 | X43: 0.2677193726 | Y43: 0.1689825859 | Z43: 0.03607151807 | AA43: 0.2677193726 | AB43: 1.520843273 | AC43: 0.3246436626 | AD43: 0.2677193726 | AG43: 13.97872378 | AH43: 26.77193726
A44: 430 | B44: 11.38019986 | C44: 6.262261854 | D44: 1.502975034 | E44: 1.504449217 | F44: 0.3211378474 | G44: 0.2400051402 | H44: 0.3344443694 | L44: 390 | M44: 0.4414452788 | N44: 0.09423170392 | O44: 0.1369913147 | P44: 0.08828905577 | Q44: 0.01884634078 | R44: 0.1369913147 | S44: 0.7946015019 | T44: 0.1696170671 | U44: 0.1369913147 | V44: 0.8429525962 | W44: 0.1799381787 | X44: 0.2615888989 | Y44: 0.1685905192 | Z44: 0.03598763573 | AA44: 0.2615888989 | AB44: 1.517314673 | AC44: 0.3238887216 | AD44: 0.2615888989 | AG44: 13.69913147 | AH44: 26.15888989
A45: 440 | B45: 11.38019986 | C45: 6.378221509 | D45: 1.500415382 | E45: 1.501498782 | F45: 0.3205072879 | G45: 0.2352404005 | H45: 0.334639604 | L45: 400 | M45: 0.4417357694 | N45: 0.09429329026 | O45: 0.1343352362 | P45: 0.08834715387 | Q45: 0.01885865805 | R45: 0.1343352362 | S45: 0.7951243849 | T45: 0.1697279225 | U45: 0.1343352362 | V45: 0.841067395 | W45: 0.1795349562 | X45: 0.255775047 | Y45: 0.168213479 | Z45: 0.03590699124 | AA45: 0.255775047 | AB45: 1.513921311 | AC45: 0.3231629212 | AD45: 0.255775047 | AG45: 13.43352362 | AH45: 25.5775047
A46: 450 | B46: 11.38019986 | C46: 6.493112119 | D46: 1.497918381 | E46: 1.498639498 | F46: 0.3198962936 | G46: 0.2306934415 | H46: 0.3348311691 | L46: 410 | M46: 0.4420337946 | N46: 0.0943565482 | O46: 0.1318087539 | P46: 0.08840675892 | Q46: 0.01887130964 | R46: 0.1318087539 | S46: 0.7956608303 | T46: 0.1698417868 | U46: 0.1318087539 | V46: 0.8392512533 | W46: 0.1791465999 | X46: 0.2502538568 | Y46: 0.1678502507 | Z46: 0.03582931998 | AA46: 0.2502538568 | AB46: 1.510652256 | AC46: 0.3224638798 | AD46: 0.2502538568 | AG46: 13.18087539 | AH46: 25.02538568
A47: 460 | B47: 11.38019986 | C47: 6.6069484 | D47: 1.495480359 | E47: 1.495865075 | F47: 0.3193035046 | G47: 0.2263496351 | H47: 0.3350192518 | L47: 420 | M47: 0.4423382426 | N47: 0.09442122964 | O47: 0.1294026007 | P47: 0.08846764852 | Q47: 0.01888424593 | R47: 0.1294026007 | S47: 0.7962088367 | T47: 0.1699582134 | U47: 0.1294026007 | V47: 0.837498769 | W47: 0.1787719351 | X47: 0.2450037288 | Y47: 0.1674997538 | Z47: 0.03575438702 | AA47: 0.2450037288 | AB47: 1.507497784 | AC47: 0.3217894831 | AD47: 0.2450037288 | AG47: 12.94026007 | AH47: 24.50037288
A48: 470 | B48: 11.38019986 | C48: 6.719744798 | D48: 1.493097962 | E48: 1.49316983 | F48: 0.3187276938 | G48: 0.2221956349 | H48: 0.3352040234 | L48: 430 | M48: 0.4426481499 | N48: 0.0944871202 | O48: 0.1271083757 | P48: 0.08852962998 | Q48: 0.01889742404 | R48: 0.1271083757 | S48: 0.7967666699 | T48: 0.1700768164 | U48: 0.1271083757 | V48: 0.8358051207 | W48: 0.1784099152 | X48: 0.2400051402 | Y48: 0.1671610241 | Z48: 0.03568198304 | AA48: 0.2400051402 | AB48: 1.504449217 | AC48: 0.3211378474 | AD48: 0.2400051402 | AG48: 12.71083757 | AH48: 24.00051402
A49: 480 | B49: 11.38019986 | C49: 6.831515497 | D49: 1.490768115 | E49: 1.490548613 | F49: 0.3181677504 | G49: 0.2182192393 | H49: 0.3353856416 | L49: 440 | M49: 0.4429626799 | N49: 0.09455403417 | O49: 0.1249184448 | P49: 0.08859253598 | Q49: 0.01891080683 | R49: 0.1249184448 | S49: 0.7973328238 | T49: 0.1701972615 | U49: 0.1249184448 | V49: 0.8341659902 | W49: 0.1780596044 | X49: 0.2352404005 | Y49: 0.166833198 | Z49: 0.03561192088 | AA49: 0.2352404005 | AB49: 1.501498782 | AC49: 0.3205072879 | AD49: 0.2352404005 | AG49: 12.49184448 | AH49: 23.52404005
A50: 490 | B50: 11.38019986 | C50: 6.942274425 | D50: 1.488487999 | E50: 1.487996748 | F50: 0.3176226665 | G50: 0.214409271 | H50: 0.3355642515 | L50: 450 | M50: 0.4432811049 | N50: 0.09462181039 | O50: 0.1228258556 | P50: 0.08865622098 | Q50: 0.01892436208 | R50: 0.1228258556 | S50: 0.7979059888 | T50: 0.1703192587 | U50: 0.1228258556 | V50: 0.8325774992 | W50: 0.1777201631 | X50: 0.2306934415 | Y50: 0.1665154998 | Z50: 0.03554403262 | AA50: 0.2306934415 | AB50: 1.498639498 | AC50: 0.3198962936 | AD50: 0.2306934415 | AG50: 12.28258556 | AH50: 23.06934415
A51: 500 | B51: 11.38019986 | C51: 7.052035258 | D51: 1.486255015 | E51: 1.485509979 | F51: 0.317091525 | G51: 0.2107554714 | H51: 0.3357399875 | L51: 460 | M51: 0.4436027909 | N51: 0.09469030873 | O51: 0.1208242619 | P51: 0.08872055818 | Q51: 0.01893806175 | R51: 0.1208242619 | S51: 0.7984850236 | T51: 0.1704425557 | U51: 0.1208242619 | V51: 0.8310361529 | W51: 0.1773908359 | X51: 0.2263496351 | Y51: 0.1662072306 | Z51: 0.03547816718 | AA51: 0.2263496351 | AB51: 1.495865075 | AC51: 0.3193035046 | AD51: 0.2263496351 | AG51: 12.08242619 | AH51: 22.63496351
A52: 510 | B52: 11.38019986 | C52: 7.160811426 | D52: 1.48406677 | E52: 1.483084418 | F52: 0.3165734897 | G52: 0.2072484082 | H52: 0.3359129735 | L52: 470 | M52: 0.4439271848 | N52: 0.09475940717 | O52: 0.1189078598 | P52: 0.08878543697 | Q52: 0.01895188143 | R52: 0.1189078598 | S52: 0.7990689327 | T52: 0.1705669329 | U52: 0.1189078598 | V52: 0.8295387943 | W52: 0.177070941 | X52: 0.2221956349 | Y52: 0.1659077589 | Z52: 0.03541418821 | AA52: 0.2221956349 | AB52: 1.49316983 | AC52: 0.3187276938 | AD52: 0.2221956349 | AG52: 11.89078598 | AH52: 22.21956349
A53: 520 | B53: 11.38019986 | C53: 7.268616121 | D53: 1.48192105 | E53: 1.480716511 | F53: 0.316067796 | G53: 0.203879394 | H53: 0.3360833249 | L53: 480 | M53: 0.4442538037 | N53: 0.0948289993 | O53: 0.1170713302 | P53: 0.08885076075 | Q53: 0.01896579986 | R53: 0.1170713302 | S53: 0.7996568467 | T53: 0.1706921987 | U53: 0.1170713302 | V53: 0.8280825625 | W53: 0.1767598613 | X53: 0.2182192393 | Y53: 0.1656165125 | Z53: 0.03535197226 | AA53: 0.2182192393 | AB53: 1.490548613 | AC53: 0.3181677504 | AD53: 0.2182192393 | AG53: 11.70713302 | AH53: 21.82192393
A54: 530 | B54: 11.38019986 | C54: 7.3754623 | D54: 1.479815806 | E54: 1.478402999 | F54: 0.3155737436 | G54: 0.2006404135 | H54: 0.3362511487 | L54: 490 | M54: 0.4445822253 | N54: 0.09489899223 | O54: 0.1153097893 | P54: 0.08891644506 | Q54: 0.01897979845 | R54: 0.1153097893 | S54: 0.8002480055 | T54: 0.170818186 | U54: 0.1153097893 | V54: 0.8266648603 | W54: 0.1764570369 | X54: 0.214409271 | Y54: 0.1653329721 | Z54: 0.03529140739 | AA54: 0.214409271 | AB54: 1.487996748 | AC54: 0.3176226665 | AD54: 0.214409271 | AG54: 11.53097893 | AH54: 21.4409271
A55: 540 | B55: 11.38019986 | C55: 7.481362688 | D55: 1.477749138 | E55: 1.476140889 | F55: 0.3150906894 | G55: 0.1975240607 | H55: 0.3364165447 | L55: 500 | M55: 0.4449120799 | N55: 0.09496930476 | O55: 0.1136187448 | P55: 0.08898241597 | Q55: 0.01899386095 | R55: 0.1136187448 | S55: 0.8008417437 | T55: 0.1709447486 | U55: 0.1136187448 | V55: 0.8252833215 | W55: 0.1761619583 | X55: 0.2107554714 | Y55: 0.1650566643 | Z55: 0.03523239167 | AA55: 0.2107554714 | AB55: 1.485509979 | AC55: 0.317091525 | AD55: 0.2107554714 | AG55: 11.36187448 | AH55: 21.07554714
L56: 510 | M56: 0.445243044 | N56: 0.09503986593 | O56: 0.1119940577 | P56: 0.08904860881 | Q56: 0.01900797319 | R56: 0.1119940577 | S56: 0.8014374792 | T56: 0.1710717587 | U56: 0.1119940577 | V56: 0.8239357876 | W56: 0.1758741609 | X56: 0.2072484082 | Y56: 0.1647871575 | Z56: 0.03517483219 | AA56: 0.2072484082 | AB56: 1.483084418 | AC56: 0.3165734897 | AD56: 0.2072484082 | AG56: 11.19940577 | AH56: 20.72484082
L57: 520 | M57: 0.4455748343 | N57: 0.09511061358 | O57: 0.1104319076 | P57: 0.08911496687 | Q57: 0.01902212272 | R57: 0.1104319076 | S57: 0.8020347018 | T57: 0.1711991044 | U57: 0.1104319076 | V57: 0.8226202837 | W57: 0.17559322 | X57: 0.203879394 | Y57: 0.1645240567 | Z57: 0.03511864401 | AA57: 0.203879394 | AB57: 1.480716511 | AC57: 0.316067796 | AD57: 0.203879394 | AG57: 11.04319076 | AH57: 20.3879394
L58: 530 | M58: 0.4459072027 | N58: 0.09518149338 | O58: 0.1089287631 | P58: 0.08918144053 | Q58: 0.01903629868 | R58: 0.1089287631 | S58: 0.8026329648 | T58: 0.1713266881 | U58: 0.1089287631 | V58: 0.8213349993 | W58: 0.1753187464 | X58: 0.2006404135 | Y58: 0.1642669999 | Z58: 0.03506374929 | AA58: 0.2006404135 | AB58: 1.478402999 | AC58: 0.3155737436 | AD58: 0.2006404135 | AG58: 10.89287631 | AH58: 20.06404135
L59: 540 | M59: 0.4462399315 | N59: 0.09525245773 | O59: 0.1074813543 | P59: 0.08924798629 | Q59: 0.01905049155 | R59: 0.1074813543 | S59: 0.8032318766 | T59: 0.1714544239 | U59: 0.1074813543 | V59: 0.8200782717 | W59: 0.175050383 | X59: 0.1975240607 | Y59: 0.1640156543 | Z59: 0.0350100766 | AA59: 0.1975240607 | AB59: 1.476140889 | AC59: 0.3150906894 | AD59: 0.1975240607 | AG59: 10.74813543 | AH59: 19.75240607
M61: var.: B1, B2, B3
M62: var.: B4, B5, B6
C64: Varianta | E64: 1 | F64: 2 | G64: 3 | H64: 4 | I64: 5 | J64: 6
C65: Napln | E65: EX | F65: EX | G65: DX | H65: EX | I65: EX | J65: DX
C66: L/G | D66: [-] | E66: 2 | F66: 2 | G66: 2 | H66: 2 | I66: 2 | J66: 2
C67: F | E67: 1.25 | F67: 0.25 | G67: 2.25 | H67: 1.25 | I67: 0.25 | J67: 2.25
C68: w | E68: =E69*100 -> 15 | F68: =F69*100 -> 15 | G68: 15 | H68: 30 | I68: 30 | J68: 30
E69: 0.15 | F69: 0.15 | G69: 0.15 | H69: 0.3 | I69: 0.3 | J69: 0.3

Sheet WHumid
B1: Vypocet maximalni nasyceni vodou vzduchu podle teploty a tlaku
B2: Ws | C2: =621.97*C5/(C3-C5) -> 49.59588232 | D2: g/kg | E2: =C2/1000 -> 0.04959588232 | F2: g/g | L2: Zdroj | M2: https://www.aqua-calc.com/calculate/humidity
B3: P | C3: 0.1 | D3: Mpa
B4: Ta | C4: 40 | D4: oC | L4: Saturated mixing ratio (Ws) Ws, g/kg = 621,97 × Pws ⁄ (P − Pws)
B5: Pws | C5: =EXP(C20)*C6 -> 0.007385110475 | D5: Mpa | E5: =6.1078*POWER(10,7.5*C4/(237.3+C4))/10000 -> 0.007374721229 | F5: Mpa | L5: Saturated water vapor pressure (Pws)
B6: Pc | C6: 22.064 | D6: Mpa | L6: ln(Pws ⁄ Pc) = Tc ⁄ T × (a1 × ϑ + a2 × ϑ1,5+ a3 × ϑ3+ a4 × ϑ3,5+ a5 × ϑ4+ a6 × ϑ7,5)
B9: Tc | C9: 647.096 | D9: K | E9: Kriticka teplota
B10: Ta | C10: =C4+273.15 -> 313.15 | D10: K | L10: a1 = −7,85951783, a2 = 1,84408259, a3 = −11,7866497, a4 = 22,6807411, a5 = −15,9618719, a6 = 1,80122502,
B11: ϑ Eta | C11: =1-C10/C9 -> 0.5160687131
C12: a | D12: power | E12: product | L12: ϑ = (1 − T ⁄ Tc)
C13: -7.85951783 | D13: 1 | E13: =C13*POWER($C$11,D13) -> -4.056051252 | I13: 0,1 Mpa | J13: 0,2 Mpa
C14: 1.84408259 | D14: 1.5 | E14: 0.6836623501 | H14: 20 | I14: 0.01489756622 | J14: 0.007360631356
C15: -11.7866497 | D15: 3 | E15: -1.619992367 | H15: 25 | I15: 0.02036075764 | J15: 0.01001643031
C16: 22.6807411 | D16: 3.5 | E16: 2.239409923 | H16: 30 | I16: 0.02758612867 | J16: 0.0134938198
C17: -15.9618719 | D17: 4 | E17: -1.132175998 | H17: 35 | I17: 0.03709939453 | J17: 0.01801249089
C18: 1.80122502 | D18: 7.5 | E18: 0.01261462807 | H18: 40 | I18: 0.04959588232 | J18: 0.02384715519
B20: ln(Pws ⁄ Pc) | C20: =C9/C10*SUM(E13:E18) -> -8.002236725
B23: Pd | C23: =C3-C5 -> 0.09261488953 | D23: Mpa
B24: Md | C24: 0.028964 | D24: kg/mol
B25: Mv | C25: 0.018016 | D25: kg/mol
B26: R | C26: 8.314 | D26: J/(kg*mol)
B28: rho vzd | C28: =(C23*C24+C5*C25)/(C26*C10)*10^6 -> 1.081435122 | D28: kg/m3

Sheet LG diff
A1: LG | B1: mst co2 inlet | C1: mst co2 lean | D1: mst co2 rich | E1: Fi | F1: absorbovane | G1: x lean | H1: x rich
A2: =MainDesign!C19 -> 4 | B2: =MassBalance!B20 -> 1.395392354 | C2: =MassBalance!E6 -> 1.056478318 | D2: =MassBalance!E17 -> 2.451870672 | E2: =MassBalance!D12 -> 1 | F2: =MassBalance!D13 -> 1.395392354 | G2: =MassBalance!E3 -> 0.9492308498 | H2: =MassBalance!E24 -> 2.092220999
A5: LG | B5: mst co2 inlet | C5: mst co2 lean | D5: mst co2 rich | E5: Fi | F5: delta mst co2 | G5: mol CO2/kg lean | H5: mol CO2/kg rich
A6: 2 | B6: 1.698473823 | C6: 0.6442569022 | D6: 1.120871059 | E6: 0.6599283684 | F6: 1.120871059 | G6: 0.9492308498 | H6: 2.424479105
A7: 2 | B7: 1.698473823 | C7: 0.6442569022 | D7: 1.765127961 | E7: 0.6599283684 | F7: 1.120871059 | G7: 0.9492308498 | H7: 2.424479105
A8: 2.05 | B8: 1.698473823 | C8: 0.6603633247 | D8: 1.80925616 | E8: 0.6764265776 | F8: 1.148892835 | G8: 0.9492308498 | H8: 2.424479105
A9: 2.1 | B9: 1.698473823 | C9: 0.6764697473 | D9: 1.853384359 | E9: 0.6929247868 | F9: 1.176914612 | G9: 0.9492308498 | H9: 2.424479105
A10: 2.15 | B10: 1.698473823 | C10: 0.6925761698 | D10: 1.897512558 | E10: 0.709422996 | F10: 1.204936388 | G10: 0.9492308498 | H10: 2.424479105
A11: 2.2 | B11: 1.698473823 | C11: 0.7086825924 | D11: 1.941640757 | E11: 0.7259212052 | F11: 1.232958165 | G11: 0.9492308498 | H11: 2.424479105
A12: 2.25 | B12: 1.698473823 | C12: 0.7247890149 | D12: 1.985768956 | E12: 0.7424194144 | F12: 1.260979941 | G12: 0.9492308498 | H12: 2.424479105
A13: 2.3 | B13: 1.698473823 | C13: 0.7408954375 | D13: 2.029897155 | E13: 0.7589176236 | F13: 1.289001718 | G13: 0.9492308498 | H13: 2.424479105
A14: 2.35 | B14: 1.698473823 | C14: 0.75700186 | D14: 2.074025354 | E14: 0.7754158328 | F14: 1.317023494 | G14: 0.9492308498 | H14: 2.424479105
A15: 2.4 | B15: 1.698473823 | C15: 0.7731082826 | D15: 2.118153553 | E15: 0.791914042 | F15: 1.345045271 | G15: 0.9492308498 | H15: 2.424479105
A16: 2.45 | B16: 1.698473823 | C16: 0.7892147051 | D16: 2.162281752 | E16: 0.8084122512 | F16: 1.373067047 | G16: 0.9492308498 | H16: 2.424479105
A17: 2.5 | B17: 1.698473823 | C17: 0.8053211277 | D17: 2.206409951 | E17: 0.8249104604 | F17: 1.401088824 | G17: 0.9492308498 | H17: 2.424479105
A18: 2.55 | B18: 1.698473823 | C18: 0.8214275503 | D18: 2.25053815 | E18: 0.8414086696 | F18: 1.4291106 | G18: 0.9492308498 | H18: 2.424479105
A19: 2.6 | B19: 1.698473823 | C19: 0.8375339728 | D19: 2.294666349 | E19: 0.8579068789 | F19: 1.457132377 | G19: 0.9492308498 | H19: 2.424479105
A20: 2.65 | B20: 1.698473823 | C20: 0.8536403954 | D20: 2.338794549 | E20: 0.8744050881 | F20: 1.485154153 | G20: 0.9492308498 | H20: 2.424479105
A21: 2.7 | B21: 1.698473823 | C21: 0.8697468179 | D21: 2.382922748 | E21: 0.8909032973 | F21: 1.51317593 | G21: 0.9492308498 | H21: 2.424479105
A22: 2.75 | B22: 1.698473823 | C22: 0.8858532405 | D22: 2.427050947 | E22: 0.9074015065 | F22: 1.541197706 | G22: 0.9492308498 | H22: 2.424479105
A23: 2.8 | B23: 1.698473823 | C23: 0.901959663 | D23: 2.471179146 | E23: 0.9238997157 | F23: 1.569219483 | G23: 0.9492308498 | H23: 2.424479105
A24: 2.85 | B24: 1.698473823 | C24: 0.9180660856 | D24: 2.515307345 | E24: 0.9403979249 | F24: 1.597241259 | G24: 0.9492308498 | H24: 2.424479105
A25: 2.9 | B25: 1.698473823 | C25: 0.9341725081 | D25: 2.559435544 | E25: 0.9568961341 | F25: 1.625263036 | G25: 0.9492308498 | H25: 2.424479105
A26: 2.95 | B26: 1.698473823 | C26: 0.9502789307 | D26: 2.603563743 | E26: 0.9733943433 | F26: 1.653284812 | G26: 0.9492308498 | H26: 2.424479105
A27: 3 | B27: 1.698473823 | C27: 0.9663853532 | D27: 2.647691942 | E27: 0.9898925525 | F27: 1.681306588 | G27: 0.9492308498 | H27: 2.424479105
A28: 3.05 | B28: 1.698473823 | C28: 0.9824917758 | D28: 2.680965599 | E28: 1 | F28: 1.698473823 | G28: 0.9492308498 | H28: 2.415742001
A29: 3.1 | B29: 1.698473823 | C29: 0.9985981983 | D29: 2.697072022 | E29: 1 | F29: 1.698473823 | G29: 0.9492308498 | H29: 2.393657778
A30: 3.15 | B30: 1.698473823 | C30: 1.014704621 | D30: 2.713178444 | E30: 1 | F30: 1.698473823 | G30: 0.9492308498 | H30: 2.372228821
A31: 3.2 | B31: 1.698473823 | C31: 1.030811043 | D31: 2.729284867 | E31: 1 | F31: 1.698473823 | G31: 0.9492308498 | H31: 2.351426392
A32: 3.25 | B32: 1.698473823 | C32: 1.046917466 | D32: 2.745391289 | E32: 1 | F32: 1.698473823 | G32: 0.9492308498 | H32: 2.33122341
A33: 3.3 | B33: 1.698473823 | C33: 1.063023889 | D33: 2.761497712 | E33: 1 | F33: 1.698473823 | G33: 0.9492308498 | H33: 2.311594333
A34: 3.35 | B34: 1.698473823 | C34: 1.079130311 | D34: 2.777604135 | E34: 1 | F34: 1.698473823 | G34: 0.9492308498 | H34: 2.292515049
A35: 3.4 | B35: 1.698473823 | C35: 1.095236734 | D35: 2.793710557 | E35: 1 | F35: 1.698473823 | G35: 0.9492308498 | H35: 2.273962777
A36: 3.45 | B36: 1.698473823 | C36: 1.111343156 | D36: 2.80981698 | E36: 1 | F36: 1.698473823 | G36: 0.9492308498 | H36: 2.25591598
A37: 3.5 | B37: 1.698473823 | C37: 1.127449579 | D37: 2.825923402 | E37: 1 | F37: 1.698473823 | G37: 0.9492308498 | H37: 2.238354277
A38: 3.55 | B38: 1.698473823 | C38: 1.143556001 | D38: 2.842029825 | E38: 1 | F38: 1.698473823 | G38: 0.9492308498 | H38: 2.221258368
A39: 3.6 | B39: 1.698473823 | C39: 1.159662424 | D39: 2.858136247 | E39: 1 | F39: 1.698473823 | G39: 0.9492308498 | H39: 2.204609965
A40: 3.65 | B40: 1.698473823 | C40: 1.175768846 | D40: 2.87424267 | E40: 1 | F40: 1.698473823 | G40: 0.9492308498 | H40: 2.188391723
A41: 3.7 | B41: 1.698473823 | C41: 1.191875269 | D41: 2.890349092 | E41: 1 | F41: 1.698473823 | G41: 0.9492308498 | H41: 2.172587183
A42: 3.75 | B42: 1.698473823 | C42: 1.207981692 | D42: 2.906455515 | E42: 1 | F42: 1.698473823 | G42: 0.9492308498 | H42: 2.157180716
A43: 3.8 | B43: 1.698473823 | C43: 1.224088114 | D43: 2.922561938 | E43: 1 | F43: 1.698473823 | G43: 0.9492308498 | H43: 2.142157468
A44: 3.85 | B44: 1.698473823 | C44: 1.240194537 | D44: 2.93866836 | E44: 1 | F44: 1.698473823 | G44: 0.9492308498 | H44: 2.127503318
A45: 3.9 | B45: 1.698473823 | C45: 1.256300959 | D45: 2.954774783 | E45: 1 | F45: 1.698473823 | G45: 0.9492308498 | H45: 2.113204828
A46: 3.95 | B46: 1.698473823 | C46: 1.272407382 | D46: 2.970881205 | E46: 1 | F46: 1.698473823 | G46: 0.9492308498 | H46: 2.099249205
A47: 4 | B47: 1.698473823 | C47: 1.288513804 | D47: 2.986987628 | E47: 1 | F47: 1.698473823 | G47: 0.9492308498 | H47: 2.085624263
A48: 4.05 | B48: 1.698473823 | C48: 1.304620227 | D48: 3.00309405 | E48: 1 | F48: 1.698473823 | G48: 0.9492308498 | H48: 2.072318386
A49: 4.1 | B49: 1.698473823 | C49: 1.320726649 | D49: 3.019200473 | E49: 1 | F49: 1.698473823 | G49: 0.9492308498 | H49: 2.059320496
A50: 4.15 | B50: 1.698473823 | C50: 1.336833072 | D50: 3.035306895 | E50: 1 | F50: 1.698473823 | G50: 0.9492308498 | H50: 2.046620023
A51: 4.2 | B51: 1.698473823 | C51: 1.352939495 | D51: 3.051413318 | E51: 1 | F51: 1.698473823 | G51: 0.9492308498 | H51: 2.034206873
A52: 4.25 | B52: 1.698473823 | C52: 1.369045917 | D52: 3.067519741 | E52: 1 | F52: 1.698473823 | G52: 0.9492308498 | H52: 2.022071406
A53: 4.3 | B53: 1.698473823 | C53: 1.38515234 | D53: 3.083626163 | E53: 1 | F53: 1.698473823 | G53: 0.9492308498 | H53: 2.010204406
A54: 4.35 | B54: 1.698473823 | C54: 1.401258762 | D54: 3.099732586 | E54: 1 | F54: 1.698473823 | G54: 0.9492308498 | H54: 1.998597063
A55: 4.4 | B55: 1.698473823 | C55: 1.417365185 | D55: 3.115839008 | E55: 1 | F55: 1.698473823 | G55: 0.9492308498 | H55: 1.987240947
A56: 4.45 | B56: 1.698473823 | C56: 1.433471607 | D56: 3.131945431 | E56: 1 | F56: 1.698473823 | G56: 0.9492308498 | H56: 1.976127988
A57: 4.5 | B57: 1.698473823 | C57: 1.44957803 | D57: 3.148051853 | E57: 1 | F57: 1.698473823 | G57: 0.9492308498 | H57: 1.96525046
A58: 4.55 | B58: 1.698473823 | C58: 1.465684452 | D58: 3.164158276 | E58: 1 | F58: 1.698473823 | G58: 0.9492308498 | H58: 1.954600959
A59: 4.6 | B59: 1.698473823 | C59: 1.481790875 | D59: 3.180264698 | E59: 1 | F59: 1.698473823 | G59: 0.9492308498 | H59: 1.94417239
A60: 4.65 | B60: 1.698473823 | C60: 1.497897298 | D60: 3.196371121 | E60: 1 | F60: 1.698473823 | G60: 0.9492308498 | H60: 1.933957948
A61: 4.7 | B61: 1.698473823 | C61: 1.51400372 | D61: 3.212477544 | E61: 1 | F61: 1.698473823 | G61: 0.9492308498 | H61: 1.923951106
A62: 4.75 | B62: 1.698473823 | C62: 1.530110143 | D62: 3.228583966 | E62: 1 | F62: 1.698473823 | G62: 0.9492308498 | H62: 1.914145597
A63: 4.8 | B63: 1.698473823 | C63: 1.546216565 | D63: 3.244690389 | E63: 1 | F63: 1.698473823 | G63: 0.9492308498 | H63: 1.904535407
A64: 4.85 | B64: 1.698473823 | C64: 1.562322988 | D64: 3.260796811 | E64: 1 | F64: 1.698473823 | G64: 0.9492308498 | H64: 1.895114757
A65: 4.9 | B65: 1.698473823 | C65: 1.57842941 | D65: 3.276903234 | E65: 1 | F65: 1.698473823 | G65: 0.9492308498 | H65: 1.885878095
A66: 4.95 | B66: 1.698473823 | C66: 1.594535833 | D66: 3.293009656 | E66: 1 | F66: 1.698473823 | G66: 0.9492308498 | H66: 1.876820082

Sheet MyCurveFit
C2: y = 7874.737 + (-2.454762 - 7874.737)/(1 + (x/0.8854914)^8.701627)
A3: y = | C3: =SUBSTITUTE(C2,A3,"") -> 7874.737 + (-2.454762 - 7874.737)/(1 + (x/0.8854914)^8.701627)
C4: =SUBSTITUTE(C3,A4,"") -> 7874.737+(-2.454762-7874.737)/(1+(x/0.8854914)^8.701627)
A5: ( | C5: 7874.737+-2.454762-7874.737)/1+x/0.8854914)^8.701627)
A6: ) | C6: 7874.737+-2.454762-7874.737/1+x/0.8854914^8.701627
A7: + | B7: =FIND(A7,C6) -> 9 | C7: =RIGHT(C6,LEN(C6)-B7) -> -2.454762-7874.737/1+x/0.8854914^8.701627 | D7: =LEFT(C6,B7-1) -> 7874.737 | G7: a | H7: =SUBSTITUTE(D8,".",",") -> 
A8: - | B8: =FIND(A8,C7) -> 1 | C8: =RIGHT(C7,LEN(C7)-B8) -> 2.454762-7874.737/1+x/0.8854914^8.701627 | D8: =LEFT(C7,B8-1) ->  | G8: b | H8: =SUBSTITUTE(C11,".",",") -> 8,701627
A9: / | B9: =FIND(A9,C8) -> 18 | C9: =RIGHT(C8,LEN(C8)-B9) -> 1+x/0.8854914^8.701627 | D9: =LEFT(C8,B9-1) -> 2.454762-7874.737 | G9: c | H9: =SUBSTITUTE(D11,".",",") -> 0,8854914
A10: / | B10: =FIND(A10,C9) -> 4 | C10: =RIGHT(C9,LEN(C9)-B10) -> 0.8854914^8.701627 | D10: =LEFT(C9,B10-1) -> 1+x | G10: d | H10: =SUBSTITUTE(D7,".",",") -> 7874,737
A11: ^ | B11: =FIND(A11,C10) -> 10 | C11: =RIGHT(C10,LEN(C10)-B11) -> 8.701627 | D11: =LEFT(C10,B11-1) -> 0.8854914

Sheet pi diff (2)
A1: pi | B1: mst co2 inlet | C1: mst co2 lean | D1: mst co2 rich | E1: Fi | F1: Column1 | G1: Column2
A2: 100 | B2: 1.698473823 | C2: 0.3652063405 | D2: 0.8923676179 | E2: 0.3103735072 | F2: 0.5380852325 | G2: 1.271332812
A3: 150 | B3: 1.698473823 | C3: 0.4120191252 | D3: 0.9365248807 | E3: 0.3088100318 | F3: 0.6070579346 | G3: 1.3344647
A4: 200 | B4: 1.698473823 | C4: 0.4427991454 | D4: 0.9691894311 | E4: 0.3099195751 | F4: 0.6524083913 | G4: 1.380845593
A5: 250 | B5: 1.698473823 | C5: 0.4662224372 | D5: 0.9953957272 | E5: 0.3115581074 | F5: 0.6869196416 | G5: 1.417935389
A6: 300 | B6: 1.698473823 | C6: 0.4853293242 | D6: 1.017433768 | E6: 0.3132838647 | F6: 0.7150712167 | G6: 1.449062169
A7: 350 | B7: 1.698473823 | C7: 0.5015679229 | D7: 1.036547168 | E7: 0.3149764437 | F7: 0.7389967327 | G7: 1.476018124
A8: 400 | B8: 1.698473823 | C8: 0.5157490521 | D8: 1.053489843 | E8: 0.3166023422 | F8: 0.7598908283 | G8: 1.499884508
A9: 450 | B9: 1.698473823 | C9: 0.5283754851 | D9: 1.068754757 | E9: 0.3181557848 | F9: 0.7784942762 | G9: 1.5213661
A10: 500 | B10: 1.698473823 | C10: 0.5397818709 | D10: 1.082682624 | E10: 0.3196403417 | F10: 0.7953001393 | G10: 1.540948919
A11: 550 | B11: 1.698473823 | C11: 0.5502029022 | D11: 1.095519146 | E11: 0.3210624955 | F11: 0.8106542075 | G11: 1.55898287
A12: 600 | B12: 1.698473823 | C12: 0.5598099239 | D12: 1.107447573 | E12: 0.3224292546 | F12: 0.8248089358 | G12: 1.575728575
A13: 650 | B13: 1.698473823 | C13: 0.5687320915 | D13: 1.118608358 | E13: 0.3237472717 | F13: 0.8379546183 | G13: 1.591385584
A14: 700 | B14: 1.698473823 | C14: 0.5770693233 | D14: 1.129111623 | E14: 0.3250225537 | F14: 0.8502384722 | G14: 1.606110214
A15: 750 | B15: 1.698473823 | C15: 0.584900606 | D15: 1.139045369 | E15: 0.3262604084 | F15: 0.8617768741 | G15: 1.620027293
A16: 800 | B16: 1.698473823 | C16: 0.592289527 | D16: 1.148481081 | E16: 0.3274654846 | F16: 0.8726635123 | G16: 1.633238154
A17: 850 | B17: 1.698473823 | C17: 0.5992880811 | D17: 1.157477648 | E17: 0.3286418423 | F17: 0.8829749943 | G17: 1.645826233
A18: 900 | B18: 1.698473823 | C18: 0.6059393608 | D18: 1.166084189 | E18: 0.32979303 | F18: 0.8927748116 | G18: 1.65786109
A19: 950 | B19: 1.698473823 | C19: 0.6122795041 | D19: 1.174342124 | E19: 0.3309221562 | F19: 0.9021162087 | G19: 1.66940135
A20: 1000 | B20: 1.698473823 | C20: 0.6183391328 | D20: 1.182286714 | E20: 0.3320319533 | F20: 0.9110443032 | G20: 1.680496906
A21: 1050 | B21: 1.698473823 | C21: 0.6241444356 | D21: 1.189948244 | E21: 0.333124833 | F21: 0.9195976807 | G21: 1.691190594
A22: 1100 | B22: 1.698473823 | C22: 0.629717995 | D22: 1.197352928 | E22: 0.3342029328 | F22: 0.9278096137 | G22: 1.701519473
A23: 1150 | B23: 1.698473823 | C23: 0.635079429 | D23: 1.204523615 | E23: 0.3352681554 | F23: 0.935709007 | G23: 1.711515841
A24: 1200 | B24: 1.698473823 | C24: 0.6402458953 | D24: 1.211480352 | E24: 0.3363222022 | F24: 0.9433211398 | G24: 1.721208022
A25: 1250 | B25: 1.698473823 | C25: 0.645232491 | D25: 1.218240833 | E25: 0.3373666016 | F25: 0.9506682563 | G25: 1.730621007
A26: 1300 | B26: 1.698473823 | C26: 0.650052575 | D26: 1.224820757 | E26: 0.3384027319 | F26: 0.9577700389 | G26: 1.739776963
A27: 1350 | B27: 1.698473823 | C27: 0.6547180281 | D27: 1.231234127 | E27: 0.3394318421 | F27: 0.9646439924 | G27: 1.748695655
A28: 1400 | B28: 1.698473823 | C28: 0.6592394663 | D28: 1.237493488 | E28: 0.3404550685 | F28: 0.9713057582 | G28: 1.757394784
A29: 1450 | B29: 1.698473823 | C29: 0.6636264167 | D29: 1.243610132 | E29: 0.3414734492 | F29: 0.9777693734 | G29: 1.765890277
A30: 1500 | B30: 1.698473823 | C30: 0.6678874636 | D30: 1.249594259 | E30: 0.3424879366 | F30: 0.9840474856 | G30: 1.774196518
A31: 1550 | B31: 1.698473823 | C31: 0.6720303705 | D31: 1.255455123 | E31: 0.3434994079 | F31: 0.9901515336 | G31: 1.782326549
A32: 1600 | B32: 1.698473823 | C32: 0.676062183 | D32: 1.261201148 | E32: 0.3445086744 | F32: 0.996091898 | G32: 1.790292238
A33: 1650 | B33: 1.698473823 | C33: 0.679989316 | D33: 1.266840028 | E33: 0.345516489 | F33: 1.001878031 | G33: 1.798104419
A34: 1700 | B34: 1.698473823 | C34: 0.6838176278 | D34: 1.272378813 | E34: 0.3465235536 | F34: 1.007518562 | G34: 1.805773018
A35: 1750 | B35: 1.698473823 | C35: 0.6875524834 | D35: 1.277823983 | E35: 0.3475305248 | F35: 1.013021399 | G35: 1.813307152
A36: 1800 | B36: 1.698473823 | C36: 0.6911988094 | D36: 1.283181511 | E36: 0.348538019 | F36: 1.018393798 | G36: 1.820715221
A37: 1850 | B37: 1.698473823 | C37: 0.6947611413 | D37: 1.288456921 | E37: 0.3495466173 | F37: 1.023642442 | G37: 1.828004986
A38: 1900 | B38: 1.698473823 | C38: 0.6982436639 | D38: 1.29365533 | E38: 0.3505568694 | F38: 1.028773497 | G38: 1.835183636
A39: 1950 | B39: 1.698473823 | C39: 0.7016502474 | D39: 1.298781495 | E39: 0.351569297 | F39: 1.033792666 | G39: 1.842257849
A40: 2000 | B40: 1.698473823 | C40: 0.7049844789 | D40: 1.303839848 | E40: 0.3525843972 | F40: 1.038705234 | G40: 1.849233841
A41: 2050 | B41: 1.698473823 | C41: 0.708249689 | D41: 1.308834526 | E41: 0.3536026453 | F41: 1.043516107 | G41: 1.856117413

Sheet 690010
J1: DIN 1.4301
C2: Tr60x5 | J2: 17240.4 | K2: ČSN 17 240, AISI 304
B3: p | C3: 1 | D3: MPa | J3: http://woite-edelstahl.com/14301en.html
B4: D | C4: 50 | D4: mm | E4: 303.9 | G4: p*V | H4: =C3*H5 -> 54.74636748 | J4: t | K4: Rp0,2 | L4: Rp1,0 | M4: Rm
B5: L | C5: 1290 | D5: mm | G5: Vtot | H5: =SUM(H6:H8)*1000*1.1 -> 54.74636748 | I5: l | J5: 20 | K5: 230 | L5: 248 | M5: 500
B6: SigD | C6: =K14 -> 119.6666667 | D6: MPa | G6: Vk | H6: =C5*PI()*C4^2/4/10^9 -> 0.002532909077 | L6: =L5/L11 -> 165.3333333 | M6: =M5/M11 -> 208.3333333
B7: SigD20 | C7: =K16 -> 165.3333333 | G7: Vr | H7: =(600*PI()*154^2)/10^9 -> 0.04470360682 | I7: m3 | J7: 100 | K7: 155 | L7: 190 | M7: 450
B8: SigZk | C8: =L6 -> 165.3333333 | G8: Vh | H8: =H6 -> 0.002532909077 | J8: 200 | K8: 127 | L8: 155 | M8: 400
B9: s r | C9: =C3*C4/(2*C6-C3) -> 0.2097902098 | D9: mm | E9: =C3*E4/(2*C6-C3) -> 1.275104895 | J9: 130 | K9: =155-(155-127)/100*(J9-100) -> 146.6 | L9: =L7-(L7-L8)/(J8-J7)*(J9-J7) -> 179.5 | M9: =M7-(M7-M8)/(J8-J7)*(J9-J7) -> 435
B10: c | C10: 1.2 | D10: mm | E10: 1 | L10: nt | M10: nb
B11: s' min | C11: =C9+C10 -> 1.40979021 | D11: mm | E11: =E9+E10 -> 2.275104895 | L11: 1.5 | M11: 2.4
B12: s | C12: 5 | D12: mm | E12: 7 | L12: =L9/L11 -> 119.6666667 | M12: =M9/M11 -> 181.25
B13: p zk | C13: =1.25*C3*C7/C6 -> 1.727019499 | D13: MPa | E13: =1.25*C3*C7/C6 -> 1.727019499
C14: =C3*C8/C7 -> 1 | D14: Vyhovuje | E14: =C3*C8/C7 -> 1 | J14: SigD | K14: =MIN(L12:M12) -> 119.6666667
A16: Vyztuzeni otvoru | J16: SigD20 | K16: =MIN(L6:M6) -> 165.3333333
B17: dout | C17: 12 | D17: mm | E17: Osamocennost
B18: din | E18: b min | F18: =SQRT(C24*(6.35-E10))+SQRT(D24*(5-E10)) -> 54.46415194
B19: d0 | C19: =2*((C12-C10)/C9-0.8)*SQRT(C4*(C12-C10)) -> 477.2956615 | D19: mm | E19: b akt | F19: 45
B22: dout | C22: 323.9 | D22: 60 | E22: 141.3 | F22: =D22+40 -> 100 | G22: =C22+2*C29 -> 428.496367
B23: s | C23: 10 | D23: 5 | E23: 3.4
B24: din | C24: =C22-2*C23 -> 303.9 | D24: =D22-2*D23 -> 50 | E24: =E22-2*E23 -> 134.5
B25: s r | C25: =C3*C24/(4*C6-C3) -> 0.6362177251 | D25: =C3*D24/(4*C6-C3) -> 0.1046755059 | E25: =C3*E24/(4*C6-C3) -> 0.281577111 | G25: 1
B26: d0 | C26: =2*((C23-C10)/C25-0.8)*SQRT(C24*(C23-C10)) -> 1347.84262 | D26: =2*((D23-C10)/D25-0.8)*SQRT(D24*(D23-C10)) -> 978.7409763 | E26: =2*((E23-C10)/E25-0.8)*SQRT(E24*(E23-C10)) -> 241.2763095
B28: l1 | C28: 38 | D28: 58
B29: L0 | C29: =SQRT(C24*(C23-E10)) -> 52.29818352 | D29: =SQRT(D24*(D23-E10)) -> 14.14213562
B30: k2 | C30: 1 | D30: 1
B31: K2 | C31: =(1+COS(RADIANS(90))^2)/2 -> 0.5
B32: l2r | C32: =C29 -> 52.29818352 | D32: =D29 -> 14.14213562
B34: v top | C34: =1+(C32*C23*C30+D32*D30*D23)/(F19*(C12-C10)) -> 4.471886043
B35: v top 2 | C35: =1+(F19*E35*C30)/(F19*(C12-C10)) -> 1.789473684 | D35: s2 | E35: 3
B36: v bot | C36: =C31*(0.8+(C24+D24)/(F19)) -> 4.332222222
B37: v tot | C37: =C35/C36 -> 0.4130613788
B38: [p] | C38: =2*(C12-C10)*C6/(0.5*(C24+D24)+(C12-C10)*C37)*C37 -> 2.104337481 | D38: Mpa
B42: s1 | C42: 8 | D42: mm | F42: otvory | G42: di | I42: ^3
B43: c | C43: =C10 -> 1.2 | G43: 12 | H43: =G43/$C$47 -> 0.08921933086 | I43: =H43^3 -> 0.000710193814
B44: souc | C44: =(E23-C10)/(C42-C43) -> 0.3235294118 | G44: 12 | H44: =G44/$C$47 -> 0.08921933086 | I44: =H44^3 -> 0.000710193814
B45: K | C45: 0.41 | G45: 12 | H45: =G45/$C$47 -> 0.08921933086 | I45: =H45^3 -> 0.000710193814
B46: K0 | C46: =G47 -> 1.167293006 | H46: =SUM(H43:H45) -> 0.2676579926 | I46: =SUM(I43:I45) -> 0.002130581442
B47: Dr | C47: =E24 -> 134.5 | F47: K0 | G47: =SQRT((1-I46)/(1-H46)) -> 1.167293006
B48: p | C48: =C3 -> 1
B49: fi | C49: 1
B51: s1r | C51: =C45*C46*C47*SQRT(C48/C6/C49) -> 5.884362615
B52: s1' | C52: =C51+C43 -> 7.084362615

Sheet Condens (hidden)
B2: Zdroj fitovani | C2: https://mycurvefit.com/
B4: pRG co2 | C4: q g | D4: q strip | E4: q/q | F4: q g (bez q strip)
B5: 35 | C5: 7.2 | D5: 3.1 | E5: =D5/C5 -> 0.4305555556 | F5: =C5-D5 -> 4.1
B6: 58 | C6: 5 | D6: 1.7 | E6: =D6/C6 -> 0.34 | F6: =C6-D6 -> 3.3
B7: 85 | C7: 4.2 | D7: 1 | E7: =D7/C7 -> 0.2380952381 | F7: =C7-D7 -> 3.2
B8: 110 | C8: 4 | D8: 0.9 | E8: =D8/C8 -> 0.225 | F8: =C8-D8 -> 3.1
B9: 135 | C9: 3.8 | D9: 0.8 | E9: =D9/C9 -> 0.2105263158 | F9: =C9-D9 -> 3
B11: Aproximace zavislosti na pRG co2
B12: 3,584612 + (19,1416 - 3,584612)/(1 + (C29/20,32905)^2,199038)
B13: (0,2134545 + (0,4407069 - 0,2134545)/(1 + (C29/60,33977)^5,543955))
B14: (3,006147 + (1478791 - 3,006147)/(1 + (C29/0,09026914)^2,369115))
B17: RG - Rauchgas - spaliny

Sheet VLE
B4: alfa40 mol co2/mol mea | C4: p40 | D4: p41 mbar | E4: Column1 | F4: d | G4: alfa60 | H4: p60 | I4: p61 | J4: alfa80 | K4: p80 | L4: p81 | M4: alfa100 | N4: p100 | O4: alfa120 | P4: p120
B5: 0.102 | C5: 0.0016 | D5: =Table3[[#This Row],[p40]]*10 -> 0.016 | E5: =53195530 - 53195530/(1 + (Table3[[#This Row],[alfa40 mol co2/mol mea]]/0.9848806)^20.64783) -> 0 | F5: =ABS(Table3[[#This Row],[p41 mbar]]-Table3[[#This Row],[Column1]]) -> 0.016 | G5: 0.053 | H5: 0.0045 | I5: =Table3[[#This Row],[p60]]*10 -> 0.045 | J5: 0.017 | K5: 0.0056 | L5: =Table3[[#This Row],[p80]]*10 -> 0.056
B6: 0.206 | C6: 0.0123 | D6: =Table3[[#This Row],[p40]]*10 -> 0.123 | E6: =53195530 - 53195530/(1 + (Table3[[#This Row],[alfa40 mol co2/mol mea]]/0.9848806)^20.64783) -> 4.991889e-07 | F6: =ABS(Table3[[#This Row],[p41 mbar]]-Table3[[#This Row],[Column1]]) -> 0.1229995008 | G6: 0.105 | H6: 0.0154 | I6: =Table3[[#This Row],[p60]]*10 -> 0.154 | J6: 0.04 | K6: 0.0219 | L6: =Table3[[#This Row],[p80]]*10 -> 0.219
B7: 0.25 | C7: 0.0246 | D7: =Table3[[#This Row],[p40]]*10 -> 0.246 | E7: =53195530 - 53195530/(1 + (Table3[[#This Row],[alfa40 mol co2/mol mea]]/0.9848806)^20.64783) -> 2.69934535e-05 | F7: =ABS(Table3[[#This Row],[p41 mbar]]-Table3[[#This Row],[Column1]]) -> 0.2459730065 | G7: 0.162 | H7: 0.0427 | I7: =Table3[[#This Row],[p60]]*10 -> 0.427 | J7: 0.075 | K7: 0.0557 | L7: =Table3[[#This Row],[p80]]*10 -> 0.557
B8: 0.337 | C8: 0.0603 | D8: =Table3[[#This Row],[p40]]*10 -> 0.603 | E8: =53195530 - 53195530/(1 + (Table3[[#This Row],[alfa40 mol co2/mol mea]]/0.9848806)^20.64783) -> 0.01285500824 | F8: =ABS(Table3[[#This Row],[p41 mbar]]-Table3[[#This Row],[Column1]]) -> 0.5901449918 | G8: 0.244 | H8: 0.1348 | I8: =Table3[[#This Row],[p60]]*10 -> 1.348 | J8: 0.122 | K8: 0.1406 | L8: =Table3[[#This Row],[p80]]*10 -> 1.406
B9: 0.353 | C9: 0.0851 | D9: =Table3[[#This Row],[p40]]*10 -> 0.851 | E9: =53195530 - 53195530/(1 + (Table3[[#This Row],[alfa40 mol co2/mol mea]]/0.9848806)^20.64783) -> 0.03349799663 | F9: =ABS(Table3[[#This Row],[p41 mbar]]-Table3[[#This Row],[Column1]]) -> 0.8175020034 | G9: 0.303 | H9: 0.3015 | I9: =Table3[[#This Row],[p60]]*10 -> 3.015 | J9: 0.155 | K9: 0.2485 | L9: =Table3[[#This Row],[p80]]*10 -> 2.485
B10: 0.401 | C10: 0.1835 | D10: =Table3[[#This Row],[p40]]*10 -> 1.835 | E10: =53195530 - 53195530/(1 + (Table3[[#This Row],[alfa40 mol co2/mol mea]]/0.9848806)^20.64783) -> 0.4658887908 | F10: =ABS(Table3[[#This Row],[p41 mbar]]-Table3[[#This Row],[Column1]]) -> 1.369111209 | G10: 0.36 | H10: 0.6436 | I10: =Table3[[#This Row],[p60]]*10 -> 6.436 | J10: 0.216 | K10: 0.6137 | L10: =Table3[[#This Row],[p80]]*10 -> 6.137
B11: 0.417 | C11: 0.2928 | D11: =Table3[[#This Row],[p40]]*10 -> 2.928 | E11: =53195530 - 53195530/(1 + (Table3[[#This Row],[alfa40 mol co2/mol mea]]/0.9848806)^20.64783) -> 1.045017652 | F11: =ABS(Table3[[#This Row],[p41 mbar]]-Table3[[#This Row],[Column1]]) -> 1.882982348 | G11: 0.393 | H11: 1.097 | I11: =Table3[[#This Row],[p60]]*10 -> 10.97 | J11: 0.271 | K11: 1.2538 | L11: =Table3[[#This Row],[p80]]*10 -> 12.538
B12: 0.421 | C12: 0.3188 | D12: =Table3[[#This Row],[p40]]*10 -> 3.188 | E12: =53195530 - 53195530/(1 + (Table3[[#This Row],[alfa40 mol co2/mol mea]]/0.9848806)^20.64783) -> 1.272712685 | F12: =ABS(Table3[[#This Row],[p41 mbar]]-Table3[[#This Row],[Column1]]) -> 1.915287315 | G12: 0.428 | H12: 2.5014 | I12: =Table3[[#This Row],[p60]]*10 -> 25.014 | J12: 0.347 | K12: 3.7522 | L12: =Table3[[#This Row],[p80]]*10 -> 37.522
B13: 0.433 | C13: 0.3809 | D13: =Table3[[#This Row],[p40]]*10 -> 3.809 | E13: =53195530 - 53195530/(1 + (Table3[[#This Row],[alfa40 mol co2/mol mea]]/0.9848806)^20.64783) -> 2.273807317 | F13: =ABS(Table3[[#This Row],[p41 mbar]]-Table3[[#This Row],[Column1]]) -> 1.535192683 | G13: 0.491 | H13: 13.558 | I13: =Table3[[#This Row],[p60]]*10 -> 135.58 | J13: 0.4 | K13: 7.9387 | L13: =Table3[[#This Row],[p80]]*10 -> 79.387
B14: 0.447 | C14: 0.5702 | D14: =Table3[[#This Row],[p40]]*10 -> 5.702 | E14: =53195530 - 53195530/(1 + (Table3[[#This Row],[alfa40 mol co2/mol mea]]/0.9848806)^20.64783) -> 4.386306196 | F14: =ABS(Table3[[#This Row],[p41 mbar]]-Table3[[#This Row],[Column1]]) -> 1.315693804 | J14: 0.398 | K14: 8.3031 | L14: =Table3[[#This Row],[p80]]*10 -> 83.031
B15: 0.464 | C15: 1.0662 | D15: =Table3[[#This Row],[p40]]*10 -> 10.662 | E15: =53195530 - 53195530/(1 + (Table3[[#This Row],[alfa40 mol co2/mol mea]]/0.9848806)^20.64783) -> 9.480029158 | F15: =ABS(Table3[[#This Row],[p41 mbar]]-Table3[[#This Row],[Column1]]) -> 1.181970842
B16: 0.476 | C16: 1.8326 | D16: =Table3[[#This Row],[p40]]*10 -> 18.326 | E16: =53195530 - 53195530/(1 + (Table3[[#This Row],[alfa40 mol co2/mol mea]]/0.9848806)^20.64783) -> 16.06100923 | F16: =ABS(Table3[[#This Row],[p41 mbar]]-Table3[[#This Row],[Column1]]) -> 2.264990772
B17: 0.477 | C17: 1.8278 | D17: =Table3[[#This Row],[p40]]*10 -> 18.278 | E17: =53195530 - 53195530/(1 + (Table3[[#This Row],[alfa40 mol co2/mol mea]]/0.9848806)^20.64783) -> 16.77226832 | F17: =ABS(Table3[[#This Row],[p41 mbar]]-Table3[[#This Row],[Column1]]) -> 1.505731682
B18: 0.485 | C18: 2.3193 | D18: =Table3[[#This Row],[p40]]*10 -> 23.193 | E18: =53195530 - 53195530/(1 + (Table3[[#This Row],[alfa40 mol co2/mol mea]]/0.9848806)^20.64783) -> 23.64495248 | F18: =ABS(Table3[[#This Row],[p41 mbar]]-Table3[[#This Row],[Column1]]) -> 0.4519524835
B19: 0.489 | C19: 2.8577 | D19: =Table3[[#This Row],[p40]]*10 -> 28.577 | E19: =53195530 - 53195530/(1 + (Table3[[#This Row],[alfa40 mol co2/mol mea]]/0.9848806)^20.64783) -> 28.01506975 | F19: =ABS(Table3[[#This Row],[p41 mbar]]-Table3[[#This Row],[Column1]]) -> 0.5619302471
B20: 0.516 | C20: 8.5583 | D20: =Table3[[#This Row],[p40]]*10 -> 85.583 | E20: =53195530 - 53195530/(1 + (Table3[[#This Row],[alfa40 mol co2/mol mea]]/0.9848806)^20.64783) -> 84.98239984 | F20: =ABS(Table3[[#This Row],[p41 mbar]]-Table3[[#This Row],[Column1]]) -> 0.6006001564
B21: 0.524 | C21: 11.812 | D21: =Table3[[#This Row],[p40]]*10 -> 118.12 | E21: =53195530 - 53195530/(1 + (Table3[[#This Row],[alfa40 mol co2/mol mea]]/0.9848806)^20.64783) -> 116.7586245 | F21: =ABS(Table3[[#This Row],[p41 mbar]]-Table3[[#This Row],[Column1]]) -> 1.361375454
B28: FitCurve alfa40
B29: textove | C29: 53195530 + (0.9903522 - 53195530)/(1 + (x/0.9848806)^20.64783)
C30: 0,7081538 + 5,910075e-8*e^(+40,85852*x)
B31: alfa | C31: 0.5
B32: pco2 | C32: =53195530 - 53195530/(1 + (C31/0.9848806)^20.64783) -> 44.34792033
C33: =0.7081538 +( 5.910075^-8)*EXP(40.85852*C31) -> 501.4004967
D37: 40 | G37: 60
B38: SINTEF | C38: mol/mol | D38: p kpa | E38: p mbar | F38: p mbar fit40 | G38: p mbar2 | H38: p mbar fit60
C39: 0.1 | D39: 0.002 | E39: =Table4[[#This Row],[p kpa]]*10 -> 0.02 | F39: =367.3561 + (0.5104124 - 367.3561)/(1 + (Table4[[#This Row],[mol/mol]]/0.5930286)^15.05222) -> 0.5104124008 | G39: 0.1 | H39: =179154900 + (7.008588 - 179154900)/(1 + (Table4[[#This Row],[mol/mol]]/0.9931332)^20.97281) -> 7.008587986
C40: 0.15 | D40: 0.004 | E40: =Table4[[#This Row],[p kpa]]*10 -> 0.04 | F40: =367.3561 + (0.5104124 - 367.3561)/(1 + (Table4[[#This Row],[mol/mol]]/0.5930286)^15.05222) -> 0.5104127789 | G40: 0.25 | H40: =179154900 + (7.008588 - 179154900)/(1 + (Table4[[#This Row],[mol/mol]]/0.9931332)^20.97281) -> 7.008587986
C41: 0.2 | D41: 0.01 | E41: =Table4[[#This Row],[p kpa]]*10 -> 0.1 | F41: =367.3561 + (0.5104124 - 367.3561)/(1 + (Table4[[#This Row],[mol/mol]]/0.5930286)^15.05222) -> 0.5104411838 | G41: 0.6 | H41: =179154900 + (7.008588 - 179154900)/(1 + (Table4[[#This Row],[mol/mol]]/0.9931332)^20.97281) -> 7.008588433
C42: 0.25 | D42: 0.022 | E42: =Table4[[#This Row],[p kpa]]*10 -> 0.22 | F42: =367.3561 + (0.5104124 - 367.3561)/(1 + (Table4[[#This Row],[mol/mol]]/0.5930286)^15.05222) -> 0.5112400723 | G42: 1.2 | H42: =179154900 + (7.008588 - 179154900)/(1 + (Table4[[#This Row],[mol/mol]]/0.9931332)^20.97281) -> 7.008636862
C43: 0.3 | D43: 0.047 | E43: =Table4[[#This Row],[p kpa]]*10 -> 0.47 | F43: =367.3561 + (0.5104124 - 367.3561)/(1 + (Table4[[#This Row],[mol/mol]]/0.5930286)^15.05222) -> 0.5232859309 | G43: 2.5 | H43: =179154900 + (7.008588 - 179154900)/(1 + (Table4[[#This Row],[mol/mol]]/0.9931332)^20.97281) -> 7.010825425
C44: 0.35 | D44: 0.1 | E44: =Table4[[#This Row],[p kpa]]*10 -> 1 | F44: =367.3561 + (0.5104124 - 367.3561)/(1 + (Table4[[#This Row],[mol/mol]]/0.5930286)^15.05222) -> 0.6414076717 | G44: 5.5 | H44: =179154900 + (7.008588 - 179154900)/(1 + (Table4[[#This Row],[mol/mol]]/0.9931332)^20.97281) -> 7.065318346
C45: 0.4 | D45: 0.25 | E45: =Table4[[#This Row],[p kpa]]*10 -> 2.5 | F45: =367.3561 + (0.5104124 - 367.3561)/(1 + (Table4[[#This Row],[mol/mol]]/0.5930286)^15.05222) -> 1.485765909 | G45: 15 | H45: =179154900 + (7.008588 - 179154900)/(1 + (Table4[[#This Row],[mol/mol]]/0.9931332)^20.97281) -> 7.941991866
C46: 0.45 | D46: 0.7 | E46: =Table4[[#This Row],[p kpa]]*10 -> 7 | F46: =367.3561 + (0.5104124 - 367.3561)/(1 + (Table4[[#This Row],[mol/mol]]/0.5930286)^15.05222) -> 6.17950402 | G46: 50 | H46: =179154900 + (7.008588 - 179154900)/(1 + (Table4[[#This Row],[mol/mol]]/0.9931332)^20.97281) -> 18.04636747
C47: 0.5 | D47: 2.6 | E47: =Table4[[#This Row],[p kpa]]*10 -> 26 | F47: =367.3561 + (0.5104124 - 367.3561)/(1 + (Table4[[#This Row],[mol/mol]]/0.5930286)^15.05222) -> 26.62914962 | G47: 100 | H47: =179154900 + (7.008588 - 179154900)/(1 + (Table4[[#This Row],[mol/mol]]/0.9931332)^20.97281) -> 107.5962357
C48: 0.55 | D48: 9 | E48: =Table4[[#This Row],[p kpa]]*10 -> 90 | F48: =367.3561 + (0.5104124 - 367.3561)/(1 + (Table4[[#This Row],[mol/mol]]/0.5930286)^15.05222) -> 89.82293899 | G48: 750 | H48: =179154900 + (7.008588 - 179154900)/(1 + (Table4[[#This Row],[mol/mol]]/0.9931332)^20.97281) -> 749.4531274
C49: 0.6 | D49: 20 | E49: =Table4[[#This Row],[p kpa]]*10 -> 200 | F49: =367.3561 + (0.5104124 - 367.3561)/(1 + (Table4[[#This Row],[mol/mol]]/0.5930286)^15.05222) -> 200.0252591 | G49: 2000 | H49: =179154900 + (7.008588 - 179154900)/(1 + (Table4[[#This Row],[mol/mol]]/0.9931332)^20.97281) -> 4611.556144
A51: 40 | B51: alfa->>>pco2
B52: y = 367.3561 + (0.5104124 - 367.3561)/(1 + (x/0.5930286)^15.05222)
B53: alfa | C53: 0.4
B54: pco2 | C54: =367.3561 + (0.5104124 - 367.3561)/(1 + (C53/0.5930286)^15.05222) -> 1.485765909
B56: pco2->>>alfa
B57: y=0,9497223 + (-1,60215 - 0,9497223)/(1 + (x/0,00006560621)^0,1212127)
B58: pco2 | C58: =C54 -> 1.485765909
B59: alfa | C59: =0.9497223 + (-1.60215 - 0.9497223)/(1 + (C58/0.00006560621)^0.1212127) -> 0.3660311586
A61: 60 | B61: alfa->>>pco2
B62: y = 179154900 + (7,008588 - 179154900)/(1 + (x/0,9931332)^20,97281)
B63: alfa
B64: pco2

Sheet LG-qGen
B2: =MainDesign!B28 -> p i co2 | C2: =MainDesign!C28 -> 150 | D2: =MainDesign!D28 -> mbar | E2: =MainDesign!I25 -> M MEA | F2: =MainDesign!J25 -> 61.08 | G2: =MainDesign!K25 -> g/mol
B3: =MainDesign!B25 -> Flue gas inlet | C3: =MainDesign!C25 -> 6.322333258 | D3: =MainDesign!D25 -> kg/h | E3: =MainDesign!I26 -> M CO2 | F3: =MainDesign!J26 -> 44.01 | G3: =MainDesign!K26 -> g/mol
B4: =MainDesign!B31 -> w co2 inlet | C4: =MainDesign!C31 -> 0.2207084469 | E4: =MainDesign!B45 -> w MEA | F4: =MainDesign!C45 -> 0.3 | G4: =MainDesign!D45 -> vypocet plati pro 30%wt
B6: LG | C6: mst lean | D6: nst MEA | E6: alfa teor | F6: mst co2 teor | G6: mst co2 inlet | H6: Fi | I6: mst co2 skut | J6: q gen | K6: Q gen
B7: 2 | C7: =$C$3*B7 -> 12.64466652 | D7: =C7*$F$4/$F$2*1000 -> 62.10543475 | E7: =MainDesign!#REF! ->  | F7: =E7*D7*$F$3/1000 ->  | G7: =$C$3*$C$4 -> 1.395392354 | H7: =G7/F7 ->  | I7: =G7*H7 ->  | J7: =3.584612 + (19.1416 - 3.584612)/(1 + ($C$2/20.32905)^2.199038) -> 3.774235086 | K7: =J7/3.6*I7 -> 
B8: 2.1 | C8: =$C$3*B8 -> 13.27689984 | D8: =C8*$F$4/$F$2*1000 -> 65.21070649 | E8: =MainDesign!#REF! ->  | F8: =E8*D8*$F$3/1000 ->  | G8: =$C$3*$C$4 -> 1.395392354 | H8: =G8/F8 ->  | I8: =G8*H8 ->  | J8: =3.584612 + (19.1416 - 3.584612)/(1 + ($C$2/20.32905)^2.199038) -> 3.774235086 | K8: =J8/3.6*I8 -> 
B9: 2.2 | C9: 13.90913317 | D9: 68.31597823 | E9: =MainDesign!#REF! ->  | G9: 1.395392354 | J9: 3.774235086
B10: 2.3 | C10: 14.54136649 | D10: 71.42124997 | E10: =MainDesign!#REF! ->  | G10: 1.395392354 | J10: 3.774235086
B11: 2.4 | C11: 15.17359982 | D11: 74.5265217 | E11: =MainDesign!#REF! ->  | G11: 1.395392354 | J11: 3.774235086
B12: 2.5 | C12: 15.80583314 | D12: 77.63179344 | E12: =MainDesign!#REF! ->  | G12: 1.395392354 | J12: 3.774235086
B13: 2.6 | C13: 16.43806647 | D13: 80.73706518 | E13: =MainDesign!#REF! ->  | G13: 1.395392354 | J13: 3.774235086
B14: 2.7 | C14: 17.0702998 | D14: 83.84233692 | E14: =MainDesign!#REF! ->  | G14: 1.395392354 | J14: 3.774235086
B15: 2.8 | C15: 17.70253312 | D15: 86.94760866 | E15: =MainDesign!#REF! ->  | G15: 1.395392354 | J15: 3.774235086
B16: 2.9 | C16: 18.33476645 | D16: 90.05288039 | E16: =MainDesign!#REF! ->  | G16: 1.395392354 | J16: 3.774235086
B17: 3 | C17: 18.96699977 | D17: 93.15815213 | E17: =MainDesign!#REF! ->  | G17: 1.395392354 | J17: 3.774235086
B18: 3.1 | C18: 19.5992331 | D18: 96.26342387 | E18: =MainDesign!#REF! ->  | G18: 1.395392354 | J18: 3.774235086
B19: 3.2 | C19: 20.23146643 | D19: 99.36869561 | E19: =MainDesign!#REF! ->  | G19: 1.395392354 | J19: 3.774235086
B20: 3.3 | C20: 20.86369975 | D20: 102.4739673 | E20: =MainDesign!#REF! ->  | G20: 1.395392354 | J20: 3.774235086
B21: 3.4 | C21: 21.49593308 | D21: 105.5792391 | E21: =MainDesign!#REF! ->  | G21: 1.395392354 | J21: 3.774235086
B22: 3.5 | C22: 22.1281664 | D22: 108.6845108 | E22: =MainDesign!#REF! ->  | G22: 1.395392354 | J22: 3.774235086
B23: 3.6 | C23: 22.76039973 | D23: 111.7897826 | E23: =MainDesign!#REF! ->  | G23: 1.395392354 | J23: 3.774235086
B24: 3.7 | C24: 23.39263305 | D24: 114.8950543 | E24: =MainDesign!#REF! ->  | G24: 1.395392354 | J24: 3.774235086
B25: 3.8 | C25: 24.02486638 | D25: 118.000326 | E25: =MainDesign!#REF! ->  | G25: 1.395392354 | J25: 3.774235086
B26: 3.9 | C26: 24.65709971 | D26: 121.1055978 | E26: =MainDesign!#REF! ->  | G26: 1.395392354 | J26: 3.774235086
B27: 4 | C27: 25.28933303 | D27: 124.2108695 | E27: =MainDesign!#REF! ->  | G27: 1.395392354 | J27: 3.774235086

Sheet piCO2 diff
A1: pico2 | B1: Q gen | C1: Q cond pary | D1: Q HE | E1: Fi | F1: Q cond abs
A2: 10 | B2: 4.276799672 | C2: -2.020157651 | D2: 1.622973175 | E2: 0.5513756239 | F2: 0.4931653111
A3: 20 | B3: 2.880026118 | C3: 1.099887483 | D3: 1.622973175 | E3: 0.5306911829 | F3: 0.4949085151
A4: 30 | B4: 2.016782065 | C4: 0.8945098344 | D4: 1.622973175 | E4: 0.5197705122 | F4: 0.4958304239
A5: 40 | B5: 1.559082696 | C5: 0.6403962232 | D5: 1.622973175 | E5: 0.5123589745 | F5: 0.4964567105
A6: 50 | B6: 1.308658827 | C6: 0.4779855982 | D6: 1.622973175 | E6: 0.5067625346 | F6: 0.496929948
A7: 60 | B7: 1.161744821 | C7: 0.3773412312 | D7: 1.622973175 | E7: 0.5022748697 | F7: 0.4973096321
A8: 70 | B8: 1.069488907 | C8: 0.3128000838 | D8: 1.622973175 | E8: 0.4985341113 | F8: 0.4976262629
A9: 80 | B9: 1.0080687 | C9: 0.2696131998 | D9: 1.622973175 | E9: 0.495330238 | F9: 0.4978975508
A10: 90 | B10: 0.9651305018 | C10: 0.23954826 | D10: 1.622973175 | E10: 0.4925306055 | F10: 0.4981346859
A11: 100 | B11: 0.9338633915 | C11: 0.2178815893 | D11: 1.622973175 | E11: 0.4900461368 | F11: 0.4983451856
A12: 110 | B12: 0.9103008032 | C12: 0.2017955957 | D12: 1.622973175 | E12: 0.4878141528 | F12: 0.498534341
A13: 120 | B13: 0.8920200525 | C13: 0.1895433413 | D13: 1.622973175 | E13: 0.4857888971 | F13: 0.4987060158
A14: 130 | B14: 0.8774793583 | C14: 0.1800025013 | D14: 1.622973175 | E14: 0.4839359581 | F14: 0.4988631166
A15: 140 | B15: 0.8656620422 | C15: 0.1724287281 | D15: 1.622973175 | E15: 0.4822288134 | F15: 0.4990078839
A16: 150 | B16: 0.8558766417 | C16: 0.1663142233 | D16: 1.622973175 | E16: 0.480646594 | F16: 0.4991420811
A17: 160 | B17: 0.8476399803 | C17: 0.1613037866 | D17: 1.622973175 | E17: 0.4791725883 | F17: 0.4992671206
A18: 170 | B18: 0.8406062771 | C18: 0.1571433732 | D18: 1.622973175 | E18: 0.4777932094 | F18: 0.4993841508
A19: 180 | B19: 0.8345227853 | C19: 0.1536476472 | D19: 1.622973175 | E19: 0.4764972632 | F19: 0.4994941182
A20: 190 | B20: 0.8292012381 | C20: 0.1506789765 | D20: 1.622973175 | E20: 0.4752754199 | F20: 0.4995978115
A21: 200 | B21: 0.8244990006 | C21: 0.1481335069 | D21: 1.622973175 | E21: 0.4741198223 | F21: 0.4996958954
A22: 210 | B22: 0.8203063423 | C22: 0.1459317328 | D22: 1.622973175 | E22: 0.4730237925 | F22: 0.4997889345
A23: 220 | B23: 0.816537667 | C23: 0.1440119852 | D23: 1.622973175 | E23: 0.4719816079 | F23: 0.499877413
A24: 230 | B24: 0.8131253543 | C24: 0.1423258551 | D24: 1.622973175 | E24: 0.4709883275 | F24: 0.499961749
A25: 240 | B25: 0.8100153632 | C25: 0.1408349252 | D25: 1.622973175 | E25: 0.4700396564 | F25: 0.5000423056
A26: 250 | B26: 0.8071640443 | C26: 0.1395083997 | D26: 1.622973175 | E26: 0.4691318381 | F26: 0.500119401
A27: 260 | B27: 0.8045357942 | C27: 0.1383213631 | D27: 1.622973175 | E27: 0.4682615686 | F27: 0.5001933146
A28: 270 | B28: 0.8021013093 | C28: 0.1372534845 | D28: 1.622973175 | E28: 0.4674259263 | F28: 0.5002642937
A29: 280 | B29: 0.7998362675 | C29: 0.1362880423 | D29: 1.622973175 | E29: 0.4666223159 | F29: 0.5003325581
A30: 290 | B30: 0.7977203238 | C30: 0.1354111815 | D30: 1.622973175 | E30: 0.4658484212 | F30: 0.5003983038
A31: 300 | B31: 0.7957363362 | C31: 0.1346113436 | D31: 1.622973175 | E31: 0.465102167 | F31: 0.5004617065
A32: 310 | B32: 0.7938697627 | C32: 0.133878824 | D32: 1.622973175 | E32: 0.4643816865 | F32: 0.5005229242
A33: 320 | B33: 0.7921081891 | C33: 0.1332054254 | D33: 1.622973175 | E33: 0.463685295 | F33: 0.5005820997
A34: 330 | B34: 0.790440954 | C34: 0.1325841848 | D34: 1.622973175 | E34: 0.4630114662 | F34: 0.5006393621
A35: 340 | B35: 0.7888588505 | C35: 0.1320091563 | D35: 1.622973175 | E35: 0.4623588137 | F35: 0.5006948289
A36: 350 | B36: 0.7873538857 | C36: 0.1314752371 | D36: 1.622973175 | E36: 0.4617260742 | F36: 0.500748607
A37: 360 | B37: 0.7859190862 | C37: 0.1309780276 | D37: 1.622973175 | E37: 0.4611120933 | F37: 0.5008007943
A38: 370 | B38: 0.7845483397 | C38: 0.130513717 | D38: 1.622973175 | E38: 0.4605158136 | F38: 0.5008514804
A39: 380 | B39: 0.7832362648 | C39: 0.1300789913 | D39: 1.622973175 | E39: 0.459936264 | F39: 0.5009007474
A40: 390 | B40: 0.7819781043 | C40: 0.1296709565 | D40: 1.622973175 | E40: 0.4593725506 | F40: 0.5009486711
A41: 400 | B41: 0.7807696355 | C41: 0.1292870762 | D41: 1.622973175 | E41: 0.4588238489 | F41: 0.5009953215
A42: 410 | B42: 0.7796070966 | C42: 0.1289251189 | D42: 1.622973175 | E42: 0.4582893966 | F42: 0.5010407629
A43: 420 | B43: 0.7784871241 | C43: 0.1285831152 | D43: 1.622973175 | E43: 0.4577684877 | F43: 0.5010850554
A44: 430 | B44: 0.7774067007 | C44: 0.1282593209 | D44: 1.622973175 | E44: 0.457260467 | F44: 0.5011282544
A45: 440 | B45: 0.776363111 | C45: 0.1279521865 | D45: 1.622973175 | E45: 0.4567647253 | F45: 0.5011704115
A46: 450 | B46: 0.7753539035 | C46: 0.1276603315 | D46: 1.622973175 | E46: 0.4562806956 | F46: 0.5012115749
A47: 460 | B47: 0.7743768587 | C47: 0.1273825225 | D47: 1.622973175 | E47: 0.4558078487 | F47: 0.5012517892
A48: 470 | B48: 0.7734299618 | C48: 0.1271176542 | D48: 1.622973175 | E48: 0.4553456904 | F48: 0.5012910966
A49: 480 | B49: 0.7725113784 | C49: 0.1268647338 | D49: 1.622973175 | E49: 0.4548937582 | F49: 0.501329536
A50: 490 | B50: 0.7716194346 | C50: 0.1266228673 | D50: 1.622973175 | E50: 0.4544516189 | F50: 0.5013671443
A51: 500 | B51: 0.7707525991 | C51: 0.1263912477 | D51: 1.622973175 | E51: 0.4540188659 | F51: 0.501403956
A52: 510 | B52: 0.7699094678 | C52: 0.1261691447 | D52: 1.622973175 | E52: 0.4535951175 | F52: 0.5014400033

Sheet PriceList
L1: CZK | M1: 22.6 | N1: USD
B3: Name | C3: Source | D3: Quantity | E3: PriceUSD | F3: PriceCZK | H3: Total
B4: ENDRESS+HAUSER TMR31 | C4: https://www.e-direct.endress.com/cz/en/temperature-sensor-tmr31#tab1 | D4: 2 | F4: 3600 | H4: =IF(E4="",F4,E4*$M$1)*D4 -> 7200
B5: Eximus pt31 m12 | C5: http://obchod.eximus.cz/cidla-teploty/pt31-m12x1-5-6x60mm-pt100-b-4w-1m-200-c-13036i | D5: 1
B26: T | C26: 150
B27: dt | C27: =0.1+0.0017*C26 -> 0.355 | D27: Class AA ± (0,1+0,0017 * t), ±0,1 °C (0 °C), ±0,27 °C (100 °C), defined on range -50…+250 °C (wire wound resistor), 0…+150 °C (thin film resistor)
C28: =0.15+0.002*C26 -> 0.45 | D28: Class A ± (0,15+0,002 * t), ±0,15 °C (0 °C), ±0,35 °C (100 °C), defined on range -100…+450 °C (wire wound resistor), -30…+300 °C (thin film resistor)
C29: =0.3+0.005*C26 -> 1.05 | D29: Class B ± (0,3+0,005 * t), ±0,3 °C (0 °C), ±0,8 °C (100 °C), defined on range -196…+600 °C (wire wound resistor), -50…+500 °C (thin film resistor)
D30: Class C ± (0,6+0,01 * t), not commonly used for industrial measuring circuits.

Sheet Sheet1
